Cogmind - Beta 16 @@@ ROGUE MODE // 2025.12.10 @ 01:36:06 Player: C0-2MO Result: Defending 0bPrime! Performance ------------- Evolutions (8) 4000 Regions Visited (36) 7200 Robots Destroyed (175) 875 Value Destroyed (7840) 7840 Prototype IDs (170) 3400 Alien Tech Used (8) 1600 Bonus (22938) 22938 TOTAL SCORE: 47853 Bonus ------- High Alert Combat Kills 2480 Follower Combat Kills 1304 Destroyed Unchained 1000 Registered with UFD 300 Met Optimus in HQ 500 Met Data Miner 300 Met Zhirov 300 Met Warlord at Base 500 MAIN.C Attacked Warlord 500 Met Sigix 2000 Met Optimus at Protoforge 1000 Executed Drillbomb Mission 10000 Win 3000 Friendly Fire -246 Cogmind --------- Core Integrity 607/1450 Matter 300/300 Energy 955/1020 System Corruption 3% Temperature Cool (0) Movement Flying (10) Location 0bPrime Parts ------- > --- POWER (1) -------- Concept Zero-point Core > --- PROPULSION (10) -- Electron Diverter Cooled Impulse Thruster Impulse Thruster Array Experimental Biomechanical Wings Experimental Biomechanical Wings Experimental Surge Thruster Experimental Surge Thruster Experimental Surge Thruster Experimental Surge Thruster > --- UTILITY (10) ----- Experimental Thermal Generator Concept Antigrav Storage Unit Concept Chromion Battery Concept Dimensional Manipulator Plexus Tether Spectral Analyzer Concept Cloak Mesh SHELL Armor > --- WEAPON (2) ------- Sigix Broadsword > --- INVENTORY (25) --- Concept Zero-point Core Cooled Nuclear Pulse Thruster Experimental Biomechanical Wings Experimental Surge Thruster Advanced Cryofiber Web Concept Phasing Heat Sink Concept NT7 Matterbank (750) Concept Dimensional Manipulator Concept Weapon Articulator Stasis Canceller Experimental Reaction Control System Concept Cloak Mesh Graphene Brace Transdimensional Reconstructor Transdimensional Reconstructor Concept Rapid Grenade Launcher Peak State ------------ > --- POWER ------------ Concept Zero-point Core > --- PROPULSION ------- Electron Diverter Cooled Impulse Thruster Impulse Thruster Array Experimental Biomechanical Wings Experimental Biomechanical Wings Experimental Surge Thruster Experimental Surge Thruster Experimental Surge Thruster Experimental Surge Thruster > --- UTILITY ---------- Experimental Thermal Generator Concept Antigrav Storage Unit Concept Dimensional Manipulator Spectral Analyzer Experimental Reaction Control System Concept Cloak Mesh Concept Cloak Mesh SHELL Armor > --- WEAPON ----------- Sigix Broadsword > --- INVENTORY -------- Concept Zero-point Core Cooled Nuclear Pulse Thruster Experimental Biomechanical Wings Experimental Surge Thruster Advanced Cryofiber Web Concept Phasing Heat Sink Concept Chromion Battery Concept NT7 Matterbank Concept Dimensional Manipulator Concept Weapon Articulator Stasis Canceller Graphene Brace Transdimensional Reconstructor Transdimensional Reconstructor Concept Rapid Grenade Launcher UFD Drillbomb [Rating: 271] Favorites ----------- Power Micro Antimatter Reactor Engine Light Ion Engine Power Core Micro Nuclear Core Reactor Micro Antimatter Reactor Propulsion Cooled VTOL Module Treads Light Treads Wheel Wheel Flight Unit Cooled VTOL Module Utility Hacking Suite Device Advanced Sensor Array Storage Medium Storage Unit Processor Advanced Signal Interpreter Hackware Hacking Suite Protection Improved Propulsion Shielding Artifact Phase Redirector Weapon Sigix Broadsword Energy Gun Medium Laser Ballistic Gun Light Assault Rifle Ballistic Cannon Concept Helical Railcannon Launcher Mini Grenade Launcher Special Weapon Remote Datajack Impact Weapon Core Stripper Slashing Weapon Sigix Broadsword Piercing Weapon Makeshift Spear Special Melee Weapon Improved Datajack Build | -11 -10 -10 -9 -9 -9 -8 -8 -8 -8 -8 -6 -6 -6 -6 -6 -6 -5 -5 -5 -5 -5 -5 -5 -4 -4 -4 -4 -4 -4 -4 -3 -3 -3 -2 -2 -2 ------- Run | Yrd Mat Min Mat Min Exi Min Mat Sto Rec Scr Fac Was Fac Low Low Dat Pro Fac Was Fac Upp Upp Zhi Pro Fac Was Fac Upp Upp War Pro Res Tes Res Qua Frg Slots Evolved 16 | . . . 2 . . . 2 . . . 4 . . . . . . 2 . . . . . . 2 . . . . . . 2 . 2 . . Power . | . . . . . . . . . . . . . . . . . . . . . . . . . . . . . . . . . . . . . Propulsion 8 | . . . 1 . . . 1 . . . 2 . . . . . . 2 . . . . . . 1 . . . . . . . . 1 . . Utility 8 | . . . 1 . . . 1 . . . 2 . . . . . . . . . . . . . 1 . . . . . . 2 . 1 . . Weapon . | . . . . . . . . . . . . . . . . . . . . . . . . . . . . . . . . . . . . . Parts Attached 231 | 4 5 3 17 2 1 . 10 2 . . 24 4 21 2 . . . 14 . 8 1 3 1 . 7 . 4 1 1 6 . 16 10 3 5 56 Power 28 | . . 1 3 . . . 2 . . . 3 1 4 . . . . 2 . 3 . 1 . . 1 . . . . . . 1 . . 1 5 Engine 3 | . . 1 2 . . . . . . . . . . . . . . . . . . . . . . . . . . . . . . . . . Core 18 | . . . 1 . . . 2 . . . 2 . 4 . . . . 2 . 2 . 1 . . 1 . . . . . . . . . . 3 Reactor 7 | . . . . . . . . . . . 1 1 . . . . . . . 1 . . . . . . . . . . . 1 . . 1 2 Propulsion 77 | 2 2 . 9 . . . 5 . . . 9 2 7 1 . . . 4 . 3 1 1 . . 4 . 1 . . 1 . 4 6 2 . 13 Treads 2 | 1 . . 1 . . . . . . . . . . . . . . . . . . . . . . . . . . . . . . . . . Leg . | . . . . . . . . . . . . . . . . . . . . . . . . . . . . . . . . . . . . . Wheel 1 | 1 . . . . . . . . . . . . . . . . . . . . . . . . . . . . . . . . . . . . Hover . | . . . . . . . . . . . . . . . . . . . . . . . . . . . . . . . . . . . . . Flight 74 | . 2 . 8 . . . 5 . . . 9 2 7 1 . . . 4 . 3 1 1 . . 4 . 1 . . 1 . 4 6 2 . 13 Utility 96 | . 2 1 2 1 1 . 2 1 . . 10 1 9 1 . . . 6 . 2 . . 1 . 1 . 3 1 1 5 . 8 3 1 2 31 Device 51 | . 1 . . 1 . . . . . . 9 1 6 1 . . . 2 . . . . . . . . 3 1 1 3 . 3 1 1 . 17 Storage 13 | . . . . . 1 . . . . . . . 1 . . . . 2 . 2 . . . . . . . . . . . 3 . . . 4 Processor 12 | . 1 . . . . . . . . . 1 . 1 . . . . . . . . . . . . . . . . 1 . 1 1 . . 6 Hackware 8 | . . 1 1 . . . . . . . . . 1 . . . . 2 . . . . . . . . . . . 1 . 1 1 . . . Protection 10 | . . . 1 . . . 2 1 . . . . . . . . . . . . . . 1 . 1 . . . . . . . . . . 4 Artifact 2 | . . . . . . . . . . . . . . . . . . . . . . . . . . . . . . . . . . . 2 . Weapon 30 | 2 1 1 3 1 . . 1 1 . . 2 . 1 . . . . 2 . . . 1 . . 1 . . . . . . 3 1 . 2 7 Energy Gun 4 | 1 . . . . . . . . . . . . . . . . . . . . . . . . . . . . . . . . 1 . . 2 Energy Cannon . | . . . . . . . . . . . . . . . . . . . . . . . . . . . . . . . . . . . . . Ballistic Gun 5 | 1 1 . 2 . . . . . . . 1 . . . . . . . . . . . . . . . . . . . . . . . . . Ballistic Cannon 2 | . . . . . . . . . . . . . . . . . . . . . . . . . . . . . . . . . . . . 2 Launcher 4 | . . . . 1 . . . 1 . . . . . . . . . . . . . . . . . . . . . . . . . . . 2 Special Weapon 2 | . . . . . . . . . . . . . . . . . . . . . . . . . 1 . . . . . . 1 . . . . Impact Weapon 1 | . . . . . . . . . . . . . . . . . . . . . . . . . . . . . . . . . . . 1 . Slashing Weapon 6 | . . 1 . . . . . . . . 1 . . . . . . 2 . . . . . . . . . . . . . 1 . . 1 . Piercing Weapon 2 | . . . . . . . . . . . . . . . . . . . . . . 1 . . . . . . . . . . . . . 1 Special Melee Weapon 4 | . . . 1 . . . 1 . . . . . 1 . . . . . . . . . . . . . . . . . . 1 . . . . Unidentified Prototypes 41 | . . . . . . . . 1 . . 6 2 1 . . . . 1 . 1 . . 2 . . . . . . 6 . 2 2 . 5 12 Parts Lost 55 | . 2 . . . . . . . . . 5 . 4 . . . . 4 . 2 1 4 . . 2 . 1 1 5 . . 2 1 . 1 20 Power 4 | . . . . . . . . . . . 1 . . . . . . 1 . . . 1 . . . . . . . . . . . . . 1 Propulsion 30 | . 1 . . . . . . . . . 3 . 4 . . . . 2 . 2 1 2 . . . . . 1 4 . . 1 1 . . 8 Utility 15 | . 1 . . . . . . . . . . . . . . . . 1 . . . . . . 2 . 1 . 1 . . 1 . . 1 7 Weapon 6 | . . . . . . . . . . . 1 . . . . . . . . . . 1 . . . . . . . . . . . . . 4 Highest Loss Streak 14 | . 1 . . . . . . . . . 3 . 3 . . . . 2 . 1 1 2 . . 2 . 1 1 6 . . 1 1 . 1 14 To Critical Strikes . | . . . . . . . . . . . . . . . . . . . . . . . . . . . . . . . . . . . . . Average Backups 12 | . 2 4 4 5 6 6 9 9 10 10 9 9 11 13 14 15 15 10 9 12 14 14 14 15 14 14 14 14 13 13 14 14 14 15 16 18 Power 1 | . 1 1 . . . . 1 1 1 1 . . . 1 1 2 2 1 1 1 2 1 1 1 1 1 . 1 1 1 1 1 1 1 1 1 Propulsion 1 | . . . . 1 1 1 3 4 4 4 1 . . 2 2 2 2 . . 1 1 . . . 1 2 2 1 . . . . . 1 2 2 Utility 8 | . . 1 2 3 3 4 3 3 4 4 6 9 9 10 10 11 11 8 7 8 10 11 11 12 10 9 10 10 11 11 12 12 11 11 10 10 Weapon . | . . . 1 1 1 1 1 1 1 1 . . . . . . . . . . . . . . . . . . . . . . . . . 1 Tool/Special . | . . . . . . . . . . . . . . . . . . . . . . . . . . . . . . . . . . . . . Unused Backups 35 | . . . 3 . . . 3 . . 1 3 . 2 . . . . 3 . . . . 1 . 2 . 3 . . . . 1 2 . . 11 Power 4 | . . . . . . . 2 . . . . . . . . . . 1 . . . . . . 1 . . . . . . . . . . . Propulsion 4 | . . . . . . . . . . . 2 . . . . . . . . . . . . . . . 1 . . . . . . . . 1 Utility 21 | . . . 2 . . . 1 . . 1 1 . 2 . . . . 2 . . . . 1 . 1 . 1 . . . . 1 1 . . 7 Weapon 3 | . . . 1 . . . . . . . . . . . . . . . . . . . . . . . . . . . . . 1 . . 1 Tool/Special 3 | . . . . . . . . . . . . . . . . . . . . . . . . . . . 1 . . . . . . . . 2 Average Slot Usage (%) 92 | . 69 98 99 100 94 94 98 100 100 100 97 92 90 96 93 93 93 87 94 93 94 90 88 88 93 94 99 99 92 79 89 97 95 99 95 87 Core 3 | . . . 4 . . . 8 9 9 9 6 5 6 6 6 6 6 4 5 3 5 4 5 5 5 5 4 5 5 5 5 . . . . 2 Flight 38 | . 19 28 32 33 33 33 35 36 36 36 39 39 38 40 40 40 40 41 47 46 47 44 41 41 44 47 47 47 41 33 36 40 40 42 43 39 Device 11 | . 3 . . . . . . . . . 11 11 12 13 13 13 13 10 11 10 10 8 5 5 13 10 14 20 18 10 10 12 13 19 20 20 Storage 5 | . . . . . 5 11 9 9 9 9 6 6 6 6 6 6 6 5 5 5 5 5 5 5 5 5 5 5 5 5 5 4 4 4 4 5 Processor 5 | . 10 14 7 . . . . . . . 5 6 6 6 6 6 6 5 5 5 5 5 5 5 5 5 5 5 5 6 10 9 9 8 8 7 Hackware 10 | . . 13 22 22 22 22 18 18 18 18 13 13 13 13 13 13 13 11 11 11 11 11 11 11 9 5 5 5 5 6 10 13 14 9 7 1 Protection 2 | . . . 3 11 5 . 8 8 9 9 . . . . . . . . . . . 1 5 5 1 5 5 . . . . . . . . 2 Ballistic Gun 1 | . 21 24 8 . . . . . . . . . . . . . . . . . . . . . . . . . . . . . . . . . Slashing Weapon 4 | . . 4 10 10 5 . 8 9 9 9 6 6 4 4 6 6 6 4 5 5 5 . . . . . . . . . . 1 4 4 4 3 Special Melee Weapon 2 | . . . 3 11 11 11 9 9 9 9 4 . . 3 . . . . . . . . . . . . . . . . . . 3 4 . . Peak Build Rating 271 | 4 8 14 21 18 18 17 39 40 39 40 67 67 68 67 64 64 64 89 84 98 92 91 87 83 117 112 124 121 118 109 109 147 159 180 216 271 Average Rating 111 | 3 6 11 18 17 15 14 37 38 39 39 57 63 63 64 63 64 64 71 84 88 91 85 83 83 109 111 117 119 101 92 109 134 142 175 195 236 On Entrance 73 | . 4 8 14 18 18 13 15 39 39 39 40 67 64 65 63 64 64 64 84 84 92 90 82 83 83 111 112 114 118 82 109 109 136 146 180 197 Avg Prop Armor Cover (%) 6 | 26 24 . 14 . . . . . . . 2 5 4 . 24 . . 8 . 7 . . 3 3 12 . . . . . . . . 2 3 1 Naked Turns . | . . . . . . . . . . . . . . . . . . . . . . . . . . . . . . . . . . . . . Heaviest Build 99 | 3 4 8 15 12 14 17 22 22 22 22 30 28 38 30 31 31 31 38 30 48 40 40 38 30 43 41 54 41 42 31 31 49 59 68 74 99 Greatest Support 116 | 3 8 8 15 15 15 15 24 23 23 23 42 38 42 35 37 35 35 47 47 49 49 51 40 35 61 61 65 65 61 42 42 65 76 75 75 116 Greatest Overweight (x) 9 | . . . . . . 1 . . . . . . . . 9 . . . . . . . . . . . . . . . . . . . . 1 Average Overweight (x) . | . . . . . . . . . . . . . . . . . . . . . . . . . . . . . . . . . . . . . Largest Inventory Capacity 25 | 5 5 5 5 5 10 10 10 10 10 10 10 10 15 15 15 15 15 15 10 15 15 15 15 15 15 15 15 15 15 15 15 25 20 20 20 25 Average Capacity 14 | 5 5 5 5 5 7 10 10 10 10 10 10 10 12 15 15 15 15 10 10 12 15 15 15 15 15 15 15 15 15 15 15 15 16 20 19 23 Most Carried 25 | 1 5 5 5 5 7 7 10 10 10 10 10 10 15 15 15 15 15 15 9 15 15 15 15 15 15 15 15 15 14 14 15 15 20 20 20 25 Average Carried 13 | . 2 4 4 5 6 6 9 9 10 10 9 9 11 13 14 15 15 10 9 12 14 14 14 15 14 14 14 14 13 13 14 14 14 17 19 21 Final Capacity 25 | 5 5 5 5 5 10 10 10 10 10 10 10 10 15 15 15 15 15 10 10 15 15 15 15 15 15 15 15 15 15 15 15 15 20 20 20 25 Final Carried 20 | 1 5 4 5 5 7 6 10 10 10 10 10 10 13 13 15 15 15 9 9 15 15 13 15 15 14 15 15 14 14 14 15 14 20 20 19 16 Scrap Suit Usage (%) 1 | . . . . . . . . . . . . . . . . . . . . . . . . . . . . . . . . . . . . 1 Parts Cannibalized 2 | . . . . . . . . . . . . . . . . . . . . . . . . . . . . . . . . . . . . 2 Class Distribution -------------------- 43% | Hacker-Sprinter 15% | Hacker-Scout 12% | Sprinter 9% | Scavenger-Mutant 4% | Scout 4% | Mutant Dominant Class ---------------- Mutant | -10/Materials Scavenger-Mutant | -10/Mines Scavenger-Mutant | -9/Materials Scavenger-Mutant | -9/Mines Scavenger-Mutant | -9/Exiles Scavenger-Mutant | -8/Mines Hacker-Sprinter | -8/Materials Hacker-Sprinter | -8/Storage Hacker-Sprinter | -8/Recycling Hacker-Sprinter | -8/Scraptown Hacker-Sprinter | -6/Factory Hacker-Sprinter | -6/Waste Hacker-Sprinter | -6/Factory Hacker-Sprinter | -6/Lower Caves Hacker-Sprinter | -6/Lower Caves Hacker-Sprinter | -6/Data Miner Hacker-Sprinter | -5/Proximity Caves Hacker-Sprinter | -5/Factory Hacker-Sprinter | -5/Waste Hacker-Sprinter | -5/Factory Hacker-Sprinter | -5/Upper Caves Hacker-Sprinter | -5/Upper Caves Hacker-Sprinter | -5/Zhirov Hacker-Sprinter | -4/Proximity Caves Hacker-Sprinter | -4/Factory Sprinter | -4/Waste Sprinter | -4/Factory Sprinter | -4/Upper Caves Sprinter | -4/Upper Caves Sprinter | -4/Warlord Hacker-Scout | -3/Proximity Caves Hacker-Scout | -3/Research Hacker-Scout | -3/Testing Hacker-Scout | -2/Research Hacker-Scout | -2/Quarantine Sprinter | -2/Protoforge Resources | -11 -10 -10 -9 -9 -9 -8 -8 -8 -8 -8 -6 -6 -6 -6 -6 -6 -5 -5 -5 -5 -5 -5 -5 -4 -4 -4 -4 -4 -4 -4 -3 -3 -3 -2 -2 -2 ----------- Run | Yrd Mat Min Mat Min Exi Min Mat Sto Rec Scr Fac Was Fac Low Low Dat Pro Fac Was Fac Upp Upp Zhi Pro Fac Was Fac Upp Upp War Pro Res Tes Res Qua Frg Matter Collected 12798 | 243 112 30 256 70 10 90 140 80 . . 542 200 770 78 165 . 47 630 . 175 20 98 96 . 127 . 189 10 25 . 92 218 125 141 136 7883 Remotely 723 | . . . . . . . . . . . . . . . . . . . . . . . . . . . . . . . . . . . . 723 Salvage Created 9276 | 51 303 . 251 13 . 33 12 148 . . 581 . 1080 30 22 . . 877 . 773 . . 113 . 170 . 440 . . . . 450 137 205 81 3506 Parts 403 | 1 28 . 28 5 . 13 1 9 . . 19 . 25 1 3 . . 20 . 20 . . 1 . 7 . 13 . . . . 19 10 5 2 173 Haulers Intercepted 23 | . . . 2 . . . . 2 . . 2 . 6 . . . . 1 . 4 . . . . 1 . 3 . . . . 1 . 1 . . Recyclers Shooed 5 | . . . 1 1 . . . . . . . . 2 . . . . 1 . . . . . . . . . . . . . . . . . . Parts Field Recycled . | . . . . . . . . . . . . . . . . . . . . . . . . . . . . . . . . . . . . . Retrieved Matter . | . . . . . . . . . . . . . . . . . . . . . . . . . . . . . . . . . . . . . Parts Self-Destructed 8 | . . . . . . . . . . . . . . . 3 . . . . . . 2 1 . . . . . 2 . . . . . . . Prevented 5 | . . . . . . . . . . . . . . 2 . . . . . . . 3 . . . . . . . . . . . . . . Parts Restored 12 | . . . . . . . . . . . . . . . . . . . . . . . . . . . . . . . . . . . . 12 Faulty 12 | . . . . . . . . . . . . . . . . . . . . . . . . . . . . . . . . . . . . 12 Kills | -11 -10 -10 -9 -9 -9 -8 -8 -8 -8 -8 -6 -6 -6 -6 -6 -6 -5 -5 -5 -5 -5 -5 -5 -4 -4 -4 -4 -4 -4 -4 -3 -3 -3 -2 -2 -2 ------- Run | Yrd Mat Min Mat Min Exi Min Mat Sto Rec Scr Fac Was Fac Low Low Dat Pro Fac Was Fac Upp Upp Zhi Pro Fac Was Fac Upp Upp War Pro Res Tes Res Qua Frg Combat Hostiles Destroyed 96 | . 6 . 6 3 . 8 . 1 . . 1 . 5 1 . . . . . . . . . . . . . . . . . . . . . 65 Melee 39 | . . . . . . . . 1 . . 1 . 5 1 . . . . . . . . . . . . . . . . . . . . . 31 Guns 13 | . 6 . 6 . . . . . . . . . . . . . . . . . . . . . . . . . . . . . . . . 1 Cannons 23 | . . . . . . . . . . . . . . . . . . . . . . . . . . . . . . . . . . . . 23 AOE 21 | . . . . 3 . 8 . . . . . . . . . . . . . . . . . . . . . . . . . . . . . 10 Classes Destroyed 23 | 1 5 . 3 . . 1 . 1 . . . . 2 . 1 . . . . . . . . . . . . . . . . . 1 . . 8 Worker 1 | . . . 1 . . . . . . . . . . . . . . . . . . . . . . . . . . . . . . . . . Builder 3 | . . . 2 . . . . . . . . . . . . . . . . . . . . . . . . . . . . 1 . . . . Tunneler 1 | . . . . . . 1 . . . . . . . . . . . . . . . . . . . . . . . . . . . . . . Hauler 23 | . . . 2 . . . . 2 . . 2 . 6 . . . . 1 . 4 . . . . 1 . 3 . . . . 1 . 1 . . Recycler 17 | 1 1 . . . . . . . . . 2 . 3 . . . . 6 . 2 . . . . . . 1 . . . . 1 . . . . Minesweeper 1 | . . . . . . . . . . . . . . . 1 . . . . . . . . . . . . . . . . . . . . . Mechanic 2 | . 1 . . . . . . . . . . . . . . . . . . . . . . . . . . . . . . . . . . 1 Operator 10 | . 4 . . . . . 1 . . . 1 . . . . . . 1 . 1 . . . . 1 . . . . . . . 1 . . . Drone 13 | . . . . . . . . . . . . . 1 . . . . . . . . . . . . . . . . . . . . . . 12 Watcher 19 | . 1 . . . . . . . . . 1 . 1 . . . . 1 . 2 . . . . 1 . . . . . . 4 2 2 2 2 Swarmer 25 | . 3 . 6 3 . 8 . . . . . . . 1 . . . . . . . . . . . . . . . . . . . . . 4 Cutter 4 | . . . . . . . . . . . . . 4 . . . . . . . . . . . . . . . . . . . . . . . Grunt 4 | . 3 . . . . . . . . . . . . . . . . . . . . . . . . . . . . . . . . . . 1 Protector 1 | . . . . . . . . . . . . . . . . . . . . . . . . . . . . . . . . . . . . 1 Researcher 3 | . . . . . . . . . . . . . . . . . . . . . . . . . . . . . . . . . 1 . . 2 Sentry 9 | . . . . . . . . 1 . . . . . . . . . . . . . . . . . . . . . . . . . . . 8 Specialist 8 | . . . . . . . . . . . . . . . . . . . . . . . . . . . . . . . . . . . . 8 Hunter 5 | . . . . . . . . . . . . . . . . . . . . . . . . . . . . . . . . . . . . 5 Programmer 6 | . . . . . . . . . . . . . . . . . . . . . . . . . . . . . . . . . . . . 6 Hotshot 5 | . . . . . . . . . . . . . . . . . . . . . . . . . . . . . . . . . . . . 5 Decapitator 5 | . . . . . . . . . . . . . . . . . . . . . . . . . . . . . . . . . . . . 5 Immortal 2 | . . . . . . . . . . . . . . . . . . . . . . . . . . . . . . . . . . . . 2 Striker 4 | . . . . . . . . . . . . . . . . . . . . . . . . . . . . . . . . . . . . 4 Executioner 2 | . . . . . . . . . . . . . . . . . . . . . . . . . . . . . . . . . . . . 2 Alpha 7 2 | . . . . . . . . . . . . . . . . . . . . . . . . . . . . . . . . . . . . 2 Best Kill Streak 9 | 1 5 . 3 3 . 4 1 1 . . 1 . 5 1 1 . . 2 . 2 . . . . 1 . 2 . . . . 2 1 1 1 9 Combat Bots Only 9 | . 5 . 3 3 . 4 . 1 . . 1 . 4 1 . . . . . . . . . . . . . . . . . . . . . 9 Max Kills in Single Turn 3 | 1 1 . 1 2 . 3 1 1 . . 1 . 1 1 1 . . 1 . 1 . . . . 1 . 1 . . . . 1 1 1 1 3 Gunslinging . | . . . . . . . . . . . . . . . . . . . . . . . . . . . . . . . . . . . . . Exploded 3 | . . . . 2 . 3 . . . . . . . . . . . . . . . . . . . . . . . . . . . . . 3 Melee 1 | . . . . . . . . 1 . . 1 . 1 1 . . . . . . . . . . . . . . . . . . . . . 1 Uniques/NPCs Destroyed 1 | . . . . . . . . . . . 1 . . . . . . . . . . . . . . . . . . . . . . . . . 6S-H0T (-6/Factory) Combat | -11 -10 -10 -9 -9 -9 -8 -8 -8 -8 -8 -6 -6 -6 -6 -6 -6 -5 -5 -5 -5 -5 -5 -5 -4 -4 -4 -4 -4 -4 -4 -3 -3 -3 -2 -2 -2 -------- Run | Yrd Mat Min Mat Min Exi Min Mat Sto Rec Scr Fac Was Fac Low Low Dat Pro Fac Was Fac Upp Upp Zhi Pro Fac Was Fac Upp Upp War Pro Res Tes Res Qua Frg Hostile Shots Fired 1076 | . 35 3 82 11 . 9 14 15 . . 70 . 64 16 8 . 1 34 . 29 9 27 . 3 18 . 61 2 6 . . 20 13 11 23 492 Missed 597 | . 9 2 43 8 . 6 11 9 . . 38 . 40 15 5 . 1 18 . 18 3 12 . 1 9 . 37 2 2 . . 13 9 5 11 270 Hits 479 | . 26 1 39 3 . 3 3 6 . . 32 . 24 1 3 . . 16 . 11 6 15 . 2 9 . 24 . 4 . . 7 4 6 12 222 Melee 12 | . . . . . . . . . . . . . 7 . . . . . . . . . . . 1 . . . . . . . . . . 4 Projectile 467 | . 26 1 39 3 . 3 3 6 . . 32 . 17 1 3 . . 16 . 11 6 15 . 2 8 . 24 . 4 . . 7 4 6 12 218 AOE 15 | . . . . . . . . . . . . . 2 . . . . . . . . . . . 1 . . . . . . . . . . 12 Critical Strikes 31 | . . . 1 . . . . . . . 2 . 1 . . . . . . . . . . . 1 . 1 . 1 . . . 1 1 2 20 Actively Blocked 16 | . . . . . . . . . . . . . . . . . . . . . . . . . . . 1 . . . . . . . . 15 Part Disruptions 1 | . . . . . . . . . . . . . . . . . . . . 1 . . . . . . . . . . . . . . . . Damage Taken 12621 | . 285 13 480 19 . 33 93 124 . . 569 . 395 17 52 . . 468 . 353 54 236 . 62 144 . 384 64 303 . . 157 89 117 400 7710 Core 2011 | . 86 . 107 . . 10 31 29 . . 165 . 127 . 19 . . 132 . 18 . 16 . . 57 . 132 . 210 . . 29 . 54 . 789 Absorbed by Shields . | . . . . . . . . . . . . . . . . . . . . . . . . . . . . . . . . . . . . . Redirected to Shielding 415 | . . . . . . . 16 31 . . 65 . . . . . . . . 10 . 47 . . . . 91 . . . . . . . . 155 Ignored by Resistances 56 | . . . . . . . . . . . . . . . . . . . . . . . . . . . . . . . . . . . . 56 Regen/Repaired (Parts) 3779 | . 13 . 36 . . . 59 31 . . 32 . 37 . . . . 29 . 49 . . . . 71 . 29 . . 12 . . . 13 358 3010 Core Remaining (%) 74 | 100 . 65 . . . 70 . . . 89 . . . . . . 63 . . . . . . 83 . . . . . . 65 . 97 . . 41 Volleys Fired 302 | 3 45 . 19 3 . 5 . . . . . . . . . . . . . . . . . . 1 . . . . . . . . . . 226 Largest 2 | 2 2 . 2 1 . 1 . . . . . . . . . . . . . . . . . . 1 . . . . . . . . . . 2 Hottest 152 | 70 70 . 40 30 . 30 . . . . . . . . . . . . . . . . . . 5 . . . . . . . . . . 152 Shots Fired 535 | 6 90 . 28 3 . 5 . . . . . . . . . . . . . . . . . . 1 . . . . . . . . . . 402 Gun 167 | 6 90 . 28 . . . . . . . . . . . . . . . . . . . . . . . . . . . . . . . . 43 Cannon 346 | . . . . . . . . . . . . . . . . . . . . . . . . . . . . . . . . . . . . 346 Launcher 21 | . . . . 3 . 5 . . . . . . . . . . . . . . . . . . . . . . . . . . . . . 13 Special 1 | . . . . . . . . . . . . . . . . . . . . . . . . . 1 . . . . . . . . . . . Kinetic 450 | 3 50 . 28 . . . . . . . . . . . . . . . . . . . . . . . . . . . . . . . . 369 Thermal 44 | 3 40 . . . . . . . . . . . . . . . . . . . . . . . . . . . . . . . . . . 1 Explosive 21 | . . . . 3 . 5 . . . . . . . . . . . . . . . . . . . . . . . . . . . . . 13 Electromagnetic 19 | . . . . . . . . . . . . . . . . . . . . . . . . . . . . . . . . . . . . 19 Robot Hit Streak 33 | 5 8 . 4 1 . 1 . . . . . . . . . . . . . . . . . . 2 . . . . . . . . . . 33 Robot Miss Streak 7 | 1 3 . 3 3 . 2 . . . . . . . . . . . . . . . . . . . . . . . . . . . . . 7 Penetration Max 1 | . . . . . . . . . . . . . . . . . . . . . . . . . . . . . . . . . . . . 1 Secondary Targets 1 | . . . 1 . . . . . . . . . . . . . . . . . . . . . . . . . . . . . . . . . Max Gunslinging Chain 1 | . . . 1 . . . . . . . . . . . . . . . . . . . . . . . . . . . . . . . . . Shots Hit Robots 552 | 5 58 . 26 2 . 3 1 14 . . 13 . 31 1 2 . . 18 . 19 . . 5 . 9 . 9 . . . . 19 5 7 5 300 Core Hits 278 | 2 26 . 10 4 . 7 1 1 . . 7 . 11 1 . . . 6 . 6 . . 1 . 3 . 4 . . . . 7 4 4 2 171 Critical Kills 3 | . . . . . . . . . . . . . . . . . . . . . . . . . . . . . . . . . . . . 3 Critical Parts Destroyed 18 | . 1 . . . . . . . . . . . . . . . . . . . . . . . . . . . . . . . . . . 17 Critical Strikes 34 | . 2 . 1 1 . . . . . . . . 3 . . . . . . . . . 1 . 1 . . . . . . 1 . 2 . 22 Burn 1 | . 1 . . . . . . . . . . . . . . . . . . . . . . . . . . . . . . . . . . . Destroy 23 | . 1 . . . . . . . . . . . . . . . . . . . . . . . . . . . . . . . . . . 22 Sever 7 | . . . 1 1 . . . . . . . . 3 . . . . . . . . . . . . . . . . . . . . 2 . . Impale 3 | . . . . . . . . . . . . . . . . . . . . . . . 1 . 1 . . . . . . 1 . . . . Melee Attacks 704 | . . . 42 1 . 2 20 26 3 . 53 . 63 2 14 . . 58 . 52 1 1 5 3 43 . 35 4 . . . 64 16 38 25 133 Impact . | . . . . . . . . . . . . . . . . . . . . . . . . . . . . . . . . . . . . . Slashing 560 | . . . 42 1 . 2 20 26 3 . 53 . 63 2 14 . . 58 . 52 1 . . . . . . . . . . 12 15 38 25 133 Piercing 143 | . . . . . . . . . . . . . . . . . . . . . . 1 5 3 43 . 35 4 . . . 52 . . . . Sneak Attacks 79 | . . . 8 . . 2 . 5 . . 4 . 10 . 1 . . 7 . 7 . . . . 2 . 4 . . . . 5 2 2 1 19 Combat Hostiles 5 | . . . . . . . . 1 . . . . 1 . . . . . . . . . . . . . . . . . . . . . . 3 Follow-up Attacks . | . . . . . . . . . . . . . . . . . . . . . . . . . . . . . . . . . . . . . Damage Inflicted 35103 | 57 611 . 966 248 . 730 48 817 . . 788 . 1852 48 143 . . 1150 . 1365 . . 318 . 439 . 502 . . . . 956 415 435 595 22620 Guns 1479 | 57 611 . 176 . . . . . . . . . . . . . . . . . . . . . . . . . . . . . . . . 635 Cannons 10634 | . . . . . . . . . . . . . . . . . . . . . . . . . . . . . . . . . . . . 10634 Explosions 4014 | . . . . 196 . 610 . . . . . . . . . . . . . . . . . . . . . . . . . . . . . 3208 Melee 18976 | . . . 790 52 . 120 48 817 . . 788 . 1852 48 143 . . 1150 . 1365 . . 318 . 439 . 502 . . . . 956 415 435 595 8143 Ramming . | . . . . . . . . . . . . . . . . . . . . . . . . . . . . . . . . . . . . . Kinetic 11593 | 19 237 . 176 . . . . . . . . . . . . . . . . . . . . . . . . . . . . . . . . 11161 Thermal 412 | 38 374 . . . . . . . . . . . . . . . . . . . . . . . . . . . . . . . . . . . Explosive 4014 | . . . . 196 . 610 . . . . . . . . . . . . . . . . . . . . . . . . . . . . . 3208 Electromagnetic 108 | . . . . . . . . . . . . . . . . . . . . . . . . . . . . . . . . . . . . 108 Impact . | . . . . . . . . . . . . . . . . . . . . . . . . . . . . . . . . . . . . . Slashing 16837 | . . . 790 52 . 120 48 817 . . 788 . 1852 48 143 . . 1150 . 1365 . . . . . . . . . . . 76 415 435 595 8143 Piercing 2139 | . . . . . . . . . . . . . . . . . . . . . . . 318 . 439 . 502 . . . . 880 . . . . Highest Corruption 7 | . . . . . . . . . . . . . 1 1 . . . 1 . 1 1 1 1 1 5 5 5 5 7 7 . . 2 . . 5 Average Corruption 2 | . . . . . . . . . . . . . 1 1 . . . 1 . 1 1 1 1 1 5 5 5 5 6 7 . . 2 . . 2 Corruption Purged 8 | . . . . . . . . . . . . . . 1 . . . 1 . . . . . . . . . . . . . . . . . 6 Corruption Blocked . | . . . . . . . . . . . . . . . . . . . . . . . . . . . . . . . . . . . . . Effects 60 | . . . . . . . . . . . . . 4 2 . . . 2 . 1 . . . . 3 . 9 4 2 . . . 1 . . 32 Message Errors 17 | . . . . . . . . . . . . . 1 1 . . . . . . . . . . . . 4 1 2 . . . . . . 8 Matter Fused 17 | . . . . . . . . . . . . . 1 1 . . . . . 1 . . . . 3 . 2 1 . . . . . . . 8 Heat Flow Errors 9 | . . . . . . . . . . . . . 1 . . . . . . . . . . . . . 1 1 . . . . . . . 6 Energy Discharges 5 | . . . . . . . . . . . . . . . . . . 1 . . . . . . . . 1 . . . . . . . . 3 Parts Rejected 2 | . . . . . . . . . . . . . . . . . . . . . . . . . . . . 1 . . . . . . . 1 Parts Fused 1 | . . . . . . . . . . . . . . . . . . 1 . . . . . . . . . . . . . . . . . . Data Loss (minor) 6 | . . . . . . . . . . . . . 1 . . . . . . . . . . . . . 1 . . . . . . . . 4 Data Loss (major) 1 | . . . . . . . . . . . . . . . . . . . . . . . . . . . . . . . . . 1 . . . Alerts 2 | . . . . . . . . . . . . . . . . . . . . . . . . . . . . . . . . . . . . 2 Overload Shots . | . . . . . . . . . . . . . . . . . . . . . . . . . . . . . . . . . . . . . Overflow Damage 4130 | . . . 195 . . 101 . 75 . . 126 . 227 . 83 . . 345 . 278 . . 79 . 10 . 62 . . . . 142 47 1 170 2189 Projectiles 125 | . . . . . . . . . . . . . . . . . . . . . . . . . . . . . . . . . . . . 125 Explosions 90 | . . . . . . 83 . . . . . . . . . . . . . . . . . . . . . . . . . . . . . 7 Melee 3915 | . . . 195 . . 18 . 75 . . 126 . 227 . 83 . . 345 . 278 . . 79 . 10 . 62 . . . . 142 47 1 170 2057 Knockbacks 26 | . . . . . . . . . . . . . . . . . . . . . . . . . . . . . . . . . . . . 26 Impact . | . . . . . . . . . . . . . . . . . . . . . . . . . . . . . . . . . . . . . Kinetic 26 | . . . . . . . . . . . . . . . . . . . . . . . . . . . . . . . . . . . . 26 Secondary . | . . . . . . . . . . . . . . . . . . . . . . . . . . . . . . . . . . . . . Self-Inflicted Damage 53 | . . . . . . 4 . . . . . . . . . . . . . . . . . . . . . . . . . . . . . 49 Shots 4 | . . . . . . 1 . . . . . . . . . . . . . . . . . . . . . . . . . . . . . 3 Rammed . | . . . . . . . . . . . . . . . . . . . . . . . . . . . . . . . . . . . . . Targets Rammed . | . . . . . . . . . . . . . . . . . . . . . . . . . . . . . . . . . . . . . Kicked . | . . . . . . . . . . . . . . . . . . . . . . . . . . . . . . . . . . . . . Crushed . | . . . . . . . . . . . . . . . . . . . . . . . . . . . . . . . . . . . . . Highest Temperature 556 | 20 82 . 21 . . 1 . 8 . . 318 249 365 300 291 50 80 297 255 339 250 232 . . 298 201 424 556 268 345 . 174 304 297 328 370 Average Temperature 108 | 15 26 . 8 . . 1 . 4 . . 57 127 98 118 78 24 35 148 139 147 125 115 . . 125 104 154 197 119 158 . 50 102 127 150 79 Received Heat Transfer 1257 | . 126 9 168 . . . . 54 . . 99 . 24 . 21 . . 81 . 36 9 . . 9 . . 45 . . . . 9 . 9 18 540 Thermoelectric Energy+ 387 | . . . . . . . . . . . . . . . . . . . . . . . . . . . . . . . . . . . . 387 Effects 50 | . . . . . . . . . . . 1 1 2 . . . . 8 1 10 1 2 . . . . . 13 . 1 . . 1 1 2 6 Shutdowns 1 | . . . . . . . . . . . . . . . . . . . . . . . . . . . . 1 . . . . . . . . Energy Bleed 17 | . . . . . . . . . . . 1 1 2 . . . . 3 . 4 1 . . . . . . 1 . . . . . 1 2 1 Interference 24 | . . . . . . . . . . . . . . . . . . 5 1 6 . 2 . . . . . 4 . . . . 1 . . 5 Matter Decay 1 | . . . . . . . . . . . . . . . . . . . . . . . . . . . . . . 1 . . . . . . Damage (major) 7 | . . . . . . . . . . . . . . . . . . . . . . . . . . . . 7 . . . . . . . . Siege Activations . | . . . . . . . . . . . . . . . . . . . . . . . . . . . . . . . . . . . . . Martial Activations . | . . . . . . . . . . . . . . . . . . . . . . . . . . . . . . . . . . . . . Shielding Activations . | . . . . . . . . . . . . . . . . . . . . . . . . . . . . . . . . . . . . . Robots Disrupted . | . . . . . . . . . . . . . . . . . . . . . . . . . . . . . . . . . . . . . Combat Hostiles . | . . . . . . . . . . . . . . . . . . . . . . . . . . . . . . . . . . . . . Robots Corrupted 1 | . . . . . . . . . . . . . . . . . . . . . . . . . . . . . . . . . . . . 1 Combat Hostiles 1 | . . . . . . . . . . . . . . . . . . . . . . . . . . . . . . . . . . . . 1 Parts Fried . | . . . . . . . . . . . . . . . . . . . . . . . . . . . . . . . . . . . . . Impact Corruptions . | . . . . . . . . . . . . . . . . . . . . . . . . . . . . . . . . . . . . . Robots Melted . | . . . . . . . . . . . . . . . . . . . . . . . . . . . . . . . . . . . . . Combat Hostiles . | . . . . . . . . . . . . . . . . . . . . . . . . . . . . . . . . . . . . . Parts Melted 1 | . 1 . . . . . . . . . . . . . . . . . . . . . . . . . . . . . . . . . . . Heat Transferred 1295 | 111 1184 . . . . . . . . . . . . . . . . . . . . . . . . . . . . . . . . . . . Parts Sabotaged . | . . . . . . . . . . . . . . . . . . . . . . . . . . . . . . . . . . . . . Parts Stolen . | . . . . . . . . . . . . . . . . . . . . . . . . . . . . . . . . . . . . . Parts Stripped . | . . . . . . . . . . . . . . . . . . . . . . . . . . . . . . . . . . . . . Power Chain Reactions 2 | . . . . . . . . . . . . . . . . . . 2 . . . . . . . . . . . . . . . . . . Alert | -11 -10 -10 -9 -9 -9 -8 -8 -8 -8 -8 -6 -6 -6 -6 -6 -6 -5 -5 -5 -5 -5 -5 -5 -4 -4 -4 -4 -4 -4 -4 -3 -3 -3 -2 -2 -2 ------- Run | Yrd Mat Min Mat Min Exi Min Mat Sto Rec Scr Fac Was Fac Low Low Dat Pro Fac Was Fac Upp Upp Zhi Pro Fac Was Fac Upp Upp War Pro Res Tes Res Qua Frg Maximum Alert Level 5 | . . . 1 . . 1 . 2 1 . 2 . 4 . . . . 2 . 1 . . . . 1 . 2 . . . . 1 1 1 1 5 Low Security (%) 48 | 100 100 100 86 100 . 78 100 20 98 . 39 100 1 . . . . 38 100 76 . . . . 46 100 52 . . . . 99 96 55 94 3 Level 1 21 | . . . 13 . . 21 . 70 1 . 14 . 9 . . . . 45 . 23 . . . . 53 . 46 . . . . . 3 44 5 26 Level 2 12 | . . . . . . . . 8 . . 46 . 18 . . . . 16 . . . . . . . . . . . . . . . . . 23 Level 3 6 | . . . . . . . . . . . . . 46 . . . . . . . . . . . . . . . . . . . . . . 13 Level 4 6 | . . . . . . . . . . . . . 22 . . . . . . . . . . . . . . . . . . . . . . 16 Level 5 4 | . . . . . . . . . . . . . . . . . . . . . . . . . . . . . . . . . . . . 16 High Security . | . . . . . . . . . . . . . . . . . . . . . . . . . . . . . . . . . . . . . Max Security . | . . . . . . . . . . . . . . . . . . . . . . . . . . . . . . . . . . . . . Peak Influence 2151 | 5 171 74 281 152 . 269 164 420 202 . 594 187 1269 . . . . 441 90 266 . . . . 299 70 435 . . . . 216 251 267 251 2151 Initial 150 | . 3 63 . 48 . . 96 . 146 . . 150 84 . . . . . 90 63 . . . . . 70 49 . . . . . 63 135 148 84 Average 407 | 1 117 35 120 101 . 99 86 290 36 . 317 159 865 . . . . 236 90 164 . . . . 147 70 196 . . . . 50 100 178 122 870 Influence Increases 15270 | 5 479 51 793 211 . 349 371 821 172 . 1163 80 2271 95 140 . 95 974 . 799 60 210 5 . 523 . 888 75 30 . . 454 288 409 441 3018 Destroy 0b10 Robot/C 2940 | . 120 20 120 120 . 160 . 340 . . . . 680 20 . . 40 . . . . . . . 160 . 60 . . . . . 20 . . 1080 Destroy 0b10 Robot/NC 525 | 5 35 . 25 . . 5 5 15 . . 30 . 95 . 5 . . 45 . 45 . . 5 . 25 . 20 . . . . 35 15 15 10 90 Destroy Leader 490 | . 32 . 24 20 . 20 . 86 . . 6 . 158 . . . 10 4 . 12 . . . . 24 . 16 . . . . 10 4 6 4 54 Allied During Kill 530 | . . 1 . 7 . 9 . 164 . . . . 344 . . . . . . . . . . . 5 . . . . . . . . . . . Trap Triggered on 0b10 90 | . . . . . . . . . . . . . 50 . . . . . . 10 . . . . . . . . . . . . . . . 30 Successful Hack 954 | . 22 . 31 . . . 19 44 19 . 106 . 134 . . . . 48 . 93 . . . . 15 . 83 . . . . 19 42 64 100 115 Select Force Hacks 410 | . 30 . 60 . . . 60 . 150 . 20 . 40 . . . . 50 . . . . . . . . . . . . . . . . . . Disable Machine 675 | . . . . . . 15 . . . . 15 . 75 . . . . 15 . 30 . . . . 30 . 15 . . . . 30 45 . 120 285 Anti-Garrison Action 400 | . . . . . . . . . . . 200 . . . . . . . . . . . . . . . . . . . . . . . . 200 Destroy Structure 816 | . . . 23 19 . 35 17 7 3 . 36 35 95 . . . . 62 . 54 . . . . 84 . 64 . . . . 60 12 84 27 99 Partial Spotted 1515 | . 45 . 60 . . . 75 75 . . 60 45 60 . . . . 210 . 195 . . . . 60 . 225 . . . . 90 45 60 30 180 Lose Combat Pursuer 5925 | . 195 30 450 45 . 105 195 90 . . 690 . 540 75 135 . 45 540 . 360 60 210 . . 120 . 405 75 30 . . 210 105 180 150 885 Influence Decreases 13120 | . 321 214 667 218 119 100 620 445 548 . 732 391 1122 550 386 568 95 716 168 623 159 152 230 . 321 132 523 262 128 150 . 340 161 386 554 1019 Entered New Map 3597 | . 2 100 . 78 119 . 153 . 230 . . 281 36 470 156 568 . . 168 27 99 32 225 . . 132 21 162 48 150 . . 51 106 116 67 Time Decay 5755 | . 299 94 282 120 . 60 345 200 107 . 422 110 416 80 230 . 80 366 . 356 50 80 5 . 211 . 222 90 30 . . 210 90 170 278 752 Search Patrol Dispatched 1000 | . . . 100 . . . . . . . 100 . . . . . . 300 . 200 . . . . . . 100 . . . . 100 . 100 . . Lost Part 550 | . 20 . . . . . . . . . 50 . 40 . . . . 40 . 20 10 40 . . 20 . 10 10 50 . . 20 10 . 10 200 Lost Ally 860 | . . 20 . 20 . 40 10 245 . . 10 . 330 . . . 15 10 . 20 . . . . 90 . 20 . . . . 10 10 10 . . Purge Threat 1358 | . . . 285 . . . 112 . 211 . 150 . 300 . . . . . . . . . . . . . 150 . . . . . . . 150 . Squads Dispatched 149 | . 4 . 5 . . . 2 3 . . 22 . 31 . . . . 19 . 13 . . . . 15 . 15 . . . . 4 . 6 2 8 Investigation 91 | . 2 . 5 . . . 2 . . . 16 . 17 . . . . 13 . 8 . . . . 6 . 9 . . . . 2 . 4 1 6 Extermination 20 | . . . . . . . . . . . 3 . 2 . . . . 4 . 3 . . . . 2 . 2 . . . . 2 . 1 1 . Reinforcement 27 | . 2 . . . . . . 1 . . 3 . 6 . . . . 2 . 2 . . . . 4 . 4 . . . . . . 1 . 2 Assault 5 | . . . . . . . . 2 . . . . 3 . . . . . . . . . . . . . . . . . . . . . . . Garrison 6 | . . . . . . . . . . . . . 3 . . . . . . . . . . . 3 . . . . . . . . . . . Intercept . | . . . . . . . . . . . . . . . . . . . . . . . . . . . . . . . . . . . . . Searches Triggered 10 | . . . 1 . . . . . . . 1 . . . . . . 3 . 2 . . . . . . 1 . . . . 1 . 1 . . Unchained Authorized 7 | . . . . . . . . . . . 1 . . . . . . . . 1 . . . . 1 . 1 . . . . 1 1 1 . . Data Miner Redirects 12 | . . . . . . . . . . . . . . . . . . 8 . 2 . . . . . . 2 . . . . . . . . . Construction Impeded 3 | . . . . . . . . 1 . . . . 1 . . . . . . . . . . . 1 . . . . . . . . . . . Haulers Reinforced 5 | . . . . . . . . . . . 1 . 2 . . . . . . . . . . . 1 . 1 . . . . . . . . . Active Scanning Responses . | . . . . . . . . . . . . . . . . . . . . . . . . . . . . . . . . . . . . . Cargo Convoy Interrupts . | . . . . . . . . . . . . . . . . . . . . . . . . . . . . . . . . . . . . . Stealth | -11 -10 -10 -9 -9 -9 -8 -8 -8 -8 -8 -6 -6 -6 -6 -6 -6 -5 -5 -5 -5 -5 -5 -5 -4 -4 -4 -4 -4 -4 -4 -3 -3 -3 -2 -2 -2 --------- Run | Yrd Mat Min Mat Min Exi Min Mat Sto Rec Scr Fac Was Fac Low Low Dat Pro Fac Was Fac Upp Upp Zhi Pro Fac Was Fac Upp Upp War Pro Res Tes Res Qua Frg Distress Signals 46 | . 2 . 2 . . . 5 2 . . 1 . 2 . . . . 3 . 1 . . . . 3 . 4 . . . . . . 2 1 18 Communications Jammed . | . . . . . . . . . . . . . . . . . . . . . . . . . . . . . . . . . . . . . Distress Signals . | . . . . . . . . . . . . . . . . . . . . . . . . . . . . . . . . . . . . . Times Spotted 731 | . 36 2 45 10 . 14 29 25 . . 50 5 60 12 9 . 1 44 1 32 6 15 . 1 23 . 67 5 3 . . 21 13 23 13 166 Peak Tracking Total 15 | . 6 1 9 5 . 4 9 8 . . 14 5 14 5 5 . 4 12 1 6 6 10 . 1 6 . 15 4 3 . . 8 10 11 4 14 Tactical Retreats 172 | . 7 2 14 1 . 3 4 2 . . 11 . 13 2 3 . 3 12 . 11 1 5 . . 8 . 14 3 1 . . 6 2 3 7 34 ECM-based Alert Blocks 49 | . . . . . . . . . . . . . . . . . . . . . . . . . . . 38 . . . . . . . . 11 Traps | -11 -10 -10 -9 -9 -9 -8 -8 -8 -8 -8 -6 -6 -6 -6 -6 -6 -5 -5 -5 -5 -5 -5 -5 -4 -4 -4 -4 -4 -4 -4 -3 -3 -3 -2 -2 -2 ------- Run | Yrd Mat Min Mat Min Exi Min Mat Sto Rec Scr Fac Was Fac Low Low Dat Pro Fac Was Fac Upp Upp Zhi Pro Fac Was Fac Upp Upp War Pro Res Tes Res Qua Frg Traps Triggered 39 | . . . . . . . . . . . 1 . 1 . . . . 6 . 4 . . . . 2 . . 1 2 . . . 1 . 3 18 Indirectly . | . . . . . . . . . . . . . . . . . . . . . . . . . . . . . . . . . . . . . Trap Hack Attempts 58 | . . . . . . . . 8 . . 40 . 10 . . . . . . . . . . . . . . . . . . . . . . . Triggered 1 | . . . . . . . . . . . 1 . . . . . . . . . . . . . . . . . . . . . . . . . Disarmed 6 | . . . . . . . . . . . 2 . . . . . . 4 . . . . . . . . . . . . . . . . . . Reprogrammed 26 | . . . . . . . . 2 . . 3 . 11 . . . . . . . . . . . 6 . . . . . . . . . 4 . Reused 15 | . . . . . . . . . . . 4 . 5 1 1 . . . . 1 . . . . . . . . . . . . . . . 3 Traps Extracted 20 | . . . . . . . . 2 . . 3 . 6 . 4 . . . . . . . . . 5 . . . . . . . . . . . Installed 25 | . . . . . . . . . . . 4 . 6 1 5 . . . . 4 . . . . . . . . . . . . . . . 5 Triggered 11 | . . . . . . . . . . . . . 5 1 1 . . . . 1 . . . . . . . . . . . . . . . 3 Most Traps Carried 6 | . . . . 3 3 3 3 3 2 2 4 1 6 1 4 4 4 4 4 4 . . . . 5 5 5 5 5 5 5 5 5 5 5 5 Machines | -11 -10 -10 -9 -9 -9 -8 -8 -8 -8 -8 -6 -6 -6 -6 -6 -6 -5 -5 -5 -5 -5 -5 -5 -4 -4 -4 -4 -4 -4 -4 -3 -3 -3 -2 -2 -2 ---------- Run | Yrd Mat Min Mat Min Exi Min Mat Sto Rec Scr Fac Was Fac Low Low Dat Pro Fac Was Fac Upp Upp Zhi Pro Fac Was Fac Upp Upp War Pro Res Tes Res Qua Frg Machines Disabled 52 | . . . . . . 1 . . . . 1 . 5 . . . . 1 . 2 . . . . 2 . 1 . . . . 2 3 . 8 26 Max in Single Turn 1 | . . . . . . 1 . . . . 1 . . . . . . 1 . 1 . . . . 1 . . . . . . 1 1 . 1 1 Garrison Access 14 | . . . . . . . 1 1 . . 3 . 1 . . . . . . 3 . . . . . . . . . . . 1 . 2 1 1 Machines Repaired . | . . . . . . . . . . . . . . . . . . . . . . . . . . . . . . . . . . . . . Machines Dismantled . | . . . . . . . . . . . . . . . . . . . . . . . . . . . . . . . . . . . . . Machines Sabotaged . | . . . . . . . . . . . . . . . . . . . . . . . . . . . . . . . . . . . . . Overloaded Fab Kills 10 | . . . . . . . . . . . . . . . . . . 10 . . . . . . . . . . . . . . . . . . Hacking | -11 -10 -10 -9 -9 -9 -8 -8 -8 -8 -8 -6 -6 -6 -6 -6 -6 -5 -5 -5 -5 -5 -5 -5 -4 -4 -4 -4 -4 -4 -4 -3 -3 -3 -2 -2 -2 --------- Run | Yrd Mat Min Mat Min Exi Min Mat Sto Rec Scr Fac Was Fac Low Low Dat Pro Fac Was Fac Upp Upp Zhi Pro Fac Was Fac Upp Upp War Pro Res Tes Res Qua Frg Machines Accessed 297 | . 9 . 17 . 1 . 14 14 11 3 31 . 34 1 1 4 . 27 . 24 2 . 4 . 16 . 20 3 . 1 . 9 12 18 11 10 Terminals 147 | . 7 . 11 . . . 8 12 6 . 12 . 14 . . . . 11 . 13 . . . . 8 . 9 . . . . 4 9 9 8 6 Fabricators 18 | . . . . . . . . . . . 3 . 4 . . . . 3 . 2 . . . . 3 . 1 . . . . 1 1 . . . Repair Stations 22 | . 1 . 2 . . . 1 1 . . 2 . 4 . . . . 2 . 1 . . . . 1 . 3 . . . . . . 2 2 . Recycling Units 54 | . 1 . 2 . . . 2 . 5 . 8 . 8 . . . . 8 . 4 . . . . 4 . 6 . . . . 1 . 2 . 3 Scanalyzers 19 | . . . 2 . . . 2 . . . 3 . 3 . . . . 2 . 1 . . . . . . 1 . . . . 1 2 2 . . Garrison Access 17 | . . . . . . . 1 1 . . 3 . 1 . . . . 1 . 3 . . . . . . . . . . . 2 . 3 1 1 Total Hacks 881 | . 29 . 55 . 4 . 45 58 39 17 80 . 89 1 1 27 . 55 . 65 6 . 17 . 35 . 44 8 . 6 . 33 44 57 36 30 Successful 611 | . 16 . 47 . 4 . 39 37 32 17 56 . 67 1 1 27 . 36 . 41 6 . 17 . 24 . 26 8 . 6 . 18 30 24 22 9 Failed 269 | . 13 . 8 . . . 5 21 7 . 24 . 22 . . . . 19 . 24 . . . . 11 . 18 . . . . 15 14 33 14 21 Catastrophic 23 | . 1 . 1 . . . . . . . 1 . 3 . . . . 2 . 1 . . . . 1 . . . . . . 2 1 5 2 3 Database Lockouts 1 | . . . . . . . 1 . . . . . . . . . . . . . . . . . . . . . . . . . . . . . Manual 504 | . 27 . 43 . 1 . 23 39 24 . 41 . 46 . . . . 41 . 50 . . . . 25 . 29 . . 1 . 15 22 24 25 28 Terminals 510 | . 26 . 43 . . . 21 54 34 . 33 . 50 . . . . 31 . 44 . . . . 24 . 28 . . . . 14 28 31 28 21 Fabricators 34 | . . . . . . . . . . . 7 . 8 . . . . 4 . 4 . . . . 4 . 1 . . . . 3 3 . . . Repair Stations 51 | . 2 . 2 . . . 4 2 . . 8 . 8 . . . . 2 . 3 . . . . 3 . 5 . . . . . . 5 7 . Recycling Units 71 | . 1 . 2 . . . 4 . 5 . 10 . 10 . . . . 11 . 7 . . . . 4 . 6 . . . . 1 . 2 . 8 Scanalyzers 95 | . . . 8 . . . 15 . . . 16 . 12 . . . . 4 . 3 . . . . . . 4 . . . . 10 13 10 . . Garrison Access 33 | . . . . . . . 1 2 . . 6 . 1 . . . . 3 . 4 . . . . . . . . . . . 5 . 9 1 1 Terminal Hacks 200 | . 2 . 16 . 4 . 6 14 14 17 7 . 17 1 1 27 . 5 . 9 6 . 17 . 4 . 3 8 . 6 . . 5 5 5 1 Record 48 | . . . . . 4 . . . . 16 . . . . . 11 . . . . 5 . 5 . . . . 6 . . . . . . . 1 Part Schematic 34 | . . . 2 . . . . 4 5 . 3 . 3 . . 10 . 1 . 1 . . 4 . 1 . . . . . . . . . . . Robot Schematic 5 | . . . 1 . . . . 1 . . . . . . . 3 . . . . . . . . . . . . . . . . . . . . Robot Analysis 13 | . 1 . 5 . . . . 1 . . 2 . . . . . . . . . . . 4 . . . . . . . . . . . . . Prototype ID Bank 30 | . . . 3 . . . 1 1 1 . . . 2 . . 3 . . . 2 . . 4 . 1 . . . . 6 . . 2 3 1 . Open Door 10 | . . . . . . . . 3 . . . . . 1 1 . . . . . 1 . . . . . . 2 . . . . 1 . 1 . Branch Access Points 3 | . . . . . . . 1 . . . . . . . . . . . . 1 . . . . . . 1 . . . . . . . . . Machine Index 2 | . . . . . . . . . . . . . 1 . . . . . . . . . . . 1 . . . . . . . . . . . Terminal Index 5 | . 1 . 1 . . . . . 1 . . . 1 . . . . . . . . . . . . . . . . . . . 1 . . . Scanalyzer Index 1 | . . . . . . . . 1 . . . . . . . . . . . . . . . . . . . . . . . . . . . . Alert Level 4 | . . . . . . . . . 2 . . . 1 . . . . . . 1 . . . . . . . . . . . . . . . . Unreport Threat 10 | . . . 2 . . . 1 . 2 . 1 . 2 . . . . . . . . . . . . . 1 . . . . . . . 1 . Locate Traps 7 | . . . . . . . 1 1 . . . . 1 . . . . 1 . 1 . . . . . . . . . . . . . 1 1 . Disarm Traps 1 | . . . . . . . . . . . . . . . . . . 1 . . . . . . . . . . . . . . . . . . Reprogram Traps 7 | . . . . . . . . . . . . . 3 . . . . . . 2 . . . . 1 . . . . . . . . . 1 . Extermination Status 1 | . . . . . . . . . . . . . 1 . . . . . . . . . . . . . . . . . . . . . . . Recall Reinforcements 1 | . . . . . . . . . . . . . 1 . . . . . . . . . . . . . . . . . . . . . . . Hauler Manifests 2 | . . . . . . . 1 . . . . . 1 . . . . . . . . . . . . . . . . . . . . . . . Registered Components 2 | . . . . . . . . 1 1 . . . . . . . . . . . . . . . . . . . . . . . . . . . Zone Layout 13 | . . . 2 . . . 1 1 2 . 1 . . . . . . 2 . 1 . . . . . . 1 . . . . . 1 1 . . Proto ID Catalog 1 | . . . . . . . . . . 1 . . . . . . . . . . . . . . . . . . . . . . . . . . Fabricator Hacks 18 | . . . . . . . . . . . 3 . 4 . . . . 2 . 2 . . . . 2 . 1 . . . . 2 2 . . . Network Status 10 | . . . . . . . . . . . 1 . 2 . . . . 2 . 1 . . . . 2 . 1 . . . . 1 . . . . Load Schematic 4 | . . . . . . . . . . . 1 . 1 . . . . . . . . . . . . . . . . . . 1 1 . . . Build 4 | . . . . . . . . . . . 1 . 1 . . . . . . 1 . . . . . . . . . . . . 1 . . . Repair Station Hacks 23 | . 2 . . . . . 4 2 . . 3 . 4 . . . . . . 2 . . . . 2 . 1 . . . . . . . 3 . Scan Component 13 | . 1 . . . . . 2 1 . . 2 . 3 . . . . . . 1 . . . . 1 . . . . . . . . . 2 . Repair 9 | . 1 . . . . . 2 1 . . 1 . 1 . . . . . . 1 . . . . 1 . . . . . . . . . 1 . Refit 1 | . . . . . . . . . . . . . . . . . . . . . . . . . . . 1 . . . . . . . . . Recycling Unit Hacks . | . . . . . . . . . . . . . . . . . . . . . . . . . . . . . . . . . . . . . Scanalyzer 73 | . . . 8 . . . 13 . . . 13 . 9 . . . . 3 . 3 . . . . . . 2 . . . . 6 11 5 . . Insert Component 27 | . . . 3 . . . 5 . . . 4 . 4 . . . . . . 1 . . . . . . 1 . . . . 1 6 2 . . Analyze 30 | . . . 3 . . . 7 . . . 5 . 4 . . . . . . 1 . . . . . . . . . . . 4 4 2 . . Retrieve Study 16 | . . . 2 . . . 1 . . . 4 . 1 . . . . 3 . 1 . . . . . . 1 . . . . 1 1 1 . . Garrison Access Hacks 12 | . . . . . . . 1 1 . . 2 . 1 . . . . . . 3 . . . . . . . . . . . 1 . 2 1 . Seal Access 12 | . . . . . . . 1 1 . . 2 . 1 . . . . . . 3 . . . . . . . . . . . 1 . 2 1 . Unauthorized Hacks 284 | . 12 . 23 . . . 15 20 18 . 28 . 31 . . . . 26 . 22 . . . . 16 . 19 . . . . 9 12 12 13 8 Terminals 204 | . 11 . 19 . . . 11 20 13 . 16 . 18 . . . . 15 . 16 . . . . 9 . 11 . . . . 7 11 9 12 6 Track 26 | . 1 . 3 . . . 2 3 1 . 2 . . . . . . 1 . 1 . . . . 1 . 3 . . . . 1 2 1 2 2 Assimilate 20 | . 1 . 2 . . . 1 2 . . 1 . 5 . . . . 1 . 3 . . . . 1 . . . . . . 1 1 1 . . Botnet 61 | . 3 . 6 . . . 3 5 6 . 4 . 8 . . . . 5 . 3 . . . . 2 . 2 . . . . 2 2 2 5 3 Disrupt 15 | . . . 3 . . . . 4 1 . 2 . . . . . . 1 . 2 . . . . . . 1 . . . . . 1 . . . Operators 1 | . . . . . . . . 1 . . . . . . . . . . . . . . . . . . . . . . . . . . . . Skim 81 | . 6 . 5 . . . 5 5 5 . 7 . 5 . . . . 7 . 7 . . . . 5 . 5 . . . . 3 5 5 5 1 Fabricators 12 | . . . . . . . . . . . 2 . 4 . . . . 1 . 1 . . . . 2 . . . . . . 1 1 . . . Prioritize 4 | . . . . . . . . . . . . . 1 . . . . . . 1 . . . . 1 . . . . . . . 1 . . . Liberate 2 | . . . . . . . . . . . . . 1 . . . . . . . . . . . 1 . . . . . . . . . . . Overload 1 | . . . . . . . . . . . . . . . . . . 1 . . . . . . . . . . . . . . . . . . Download 3 | . . . . . . . . . . . 1 . 2 . . . . . . . . . . . . . . . . . . . . . . . Recompile 2 | . . . . . . . . . . . 1 . . . . . . . . . . . . . . . . . . . . 1 . . . . Repair Stations 12 | . . . 2 . . . . . . . 1 . 1 . . . . 2 . 1 . . . . 1 . 2 . . . . . . 1 1 . Patch 12 | . . . 2 . . . . . . . 1 . 1 . . . . 2 . 1 . . . . 1 . 2 . . . . . . 1 1 . Recycling Units 53 | . 1 . 2 . . . 3 . 5 . 8 . 8 . . . . 8 . 4 . . . . 4 . 6 . . . . 1 . 2 . 1 Reject 1 | . . . . . . . 1 . . . . . . . . . . . . . . . . . . . . . . . . . . . . . Mask 1 | . . . . . . . 1 . . . . . . . . . . . . . . . . . . . . . . . . . . . . . Tunnel 9 | . 1 . 2 . . . 1 . 5 . . . . . . . . . . . . . . . . . . . . . . . . . . . Fedlink 40 | . . . . . . . . . . . 8 . 8 . . . . 8 . 4 . . . . 3 . 5 . . . . 1 . 2 . 1 Scraphulk 2 | . . . . . . . . . . . . . . . . . . . . . . . . . 1 . 1 . . . . . . . . . Scanalyzers 1 | . . . . . . . 1 . . . . . . . . . . . . . . . . . . . . . . . . . . . . . Extract 1 | . . . . . . . 1 . . . . . . . . . . . . . . . . . . . . . . . . . . . . . Garrison Access 2 | . . . . . . . . . . . 1 . . . . . . . . . . . . . . . . . . . . . . . . 1 Jam 2 | . . . . . . . . . . . 1 . . . . . . . . . . . . . . . . . . . . . . . . 1 Data Cores Recovered 4 | . . . . . . . 1 . . . 1 . . . . . . 1 . . . . . . . . . . . . . . 1 . . . Used 1 | . . . . . . . . . . . . . . . . . . . . . . . . . . . . . . . . . 1 . . . Hacking Detections 192 | . 7 . 12 . . . 10 12 6 . 21 . 21 . . . . 16 . 20 . . . . 8 . 12 . . . . 8 9 14 9 7 Full Trace Events 22 | . 1 . 2 . . . . . 1 . 4 . 6 . . . . 1 . 2 . . . . 1 . 1 . . . . . . 1 . 2 Feedback Events 2 | . . . . . . . . . . . . . 1 . . . . . . . . . . . 1 . . . . . . . . . . . Corruption 1 | . . . . . . . . . . . . . 1 . . . . . . . . . . . . . . . . . . . . . . . Hackware Fried 1 | . . . . . . . . . . . . . . . . . . . . . . . . . 1 . . . . . . . . . . . Feedback Blocked . | . . . . . . . . . . . . . . . . . . . . . . . . . . . . . . . . . . . . . Robot Schematics Acquired 9 | . . . 1 . . . . 1 . . . . 1 . . 3 . . . . . . . . . . . . . . . . 2 . . 1 Robots Built . | . . . . . . . . . . . . . . . . . . . . . . . . . . . . . . . . . . . . . Authchips . | . . . . . . . . . . . . . . . . . . . . . . . . . . . . . . . . . . . . . Time . | . . . . . . . . . . . . . . . . . . . . . . . . . . . . . . . . . . . . . Total Robot Build Rating . | . . . . . . . . . . . . . . . . . . . . . . . . . . . . . . . . . . . . . Part Schematics Acquired 63 | . . . 5 . . . 7 4 5 . 8 . 7 . . 10 . 1 . 1 . . 4 . 1 . . . . . . 1 7 1 . 1 Parts Built 6 | . . . . . . . . . . . 1 . 2 . . . . . . 2 . . . . . . . . . . . . 1 . . . Authchips 1 | . . . . . . . . . . . . . . . . . . . . . . . . . . . . . . . . . 1 . . . Time 244 | . . . . . . . . . . . 84 . 15 . . . . . . 69 . . . . . . . . . . . . 76 . . . Total Part Build Rating 33 | . . . . . . . . . . . 6 . 4 . . . . . . 18 . . . . . . . . . . . . 5 . . . Part Studies Acquired 16 | . . . 2 . . . 1 . . . 4 . 1 . . . . 3 . 1 . . . . . . 1 . . . . 1 1 1 . . Parts Repaired 9 | . 1 . . . . . 2 1 . . 1 . 1 . . . . . . 1 . . . . 1 . . . . . . . . . 1 . Time 333 | . 26 . . . . . 88 38 . . 25 . 25 . . . . . . 25 . . . . 70 . . . . . . . . . 36 . Parts Recycled . | . . . . . . . . . . . . . . . . . . . . . . . . . . . . . . . . . . . . . Recycled Matter . | . . . . . . . . . . . . . . . . . . . . . . . . . . . . . . . . . . . . . Retrieved Matter . | . . . . . . . . . . . . . . . . . . . . . . . . . . . . . . . . . . . . . Retrieved Components . | . . . . . . . . . . . . . . . . . . . . . . . . . . . . . . . . . . . . . Parts Scanalyzed 22 | . . . 3 . . . 5 . . . 4 . 3 . . . . . . 1 . . . . . . . . . . . 1 4 1 . . Part Schematics Acquired 21 | . . . 3 . . . 5 . . . 4 . 3 . . . . . . . . . . . . . . . . . . 1 4 1 . . Parts Damaged 2 | . . . . . . . 1 . . . . . 1 . . . . . . . . . . . . . . . . . . . . . . . Bothacking | -11 -10 -10 -9 -9 -9 -8 -8 -8 -8 -8 -6 -6 -6 -6 -6 -6 -5 -5 -5 -5 -5 -5 -5 -4 -4 -4 -4 -4 -4 -4 -3 -3 -3 -2 -2 -2 ------------ Run | Yrd Mat Min Mat Min Exi Min Mat Sto Rec Scr Fac Was Fac Low Low Dat Pro Fac Was Fac Upp Upp Zhi Pro Fac Was Fac Upp Upp War Pro Res Tes Res Qua Frg Used RIF Installer . | . . . . . . . . . . . . . . . . . . . . . . . . . . . . . . . . . . . . . Robots Hacked 1 | . . . . . . . . . . . . . . . . . . . . . . . . . 1 . . . . . . . . . . . Non-combat 1 | . . . . . . . . . . . . . . . . . . . . . . . . . 1 . . . . . . . . . . . Combat . | . . . . . . . . . . . . . . . . . . . . . . . . . . . . . . . . . . . . . Robot Hacks Applied 1 | . . . . . . . . . . . . . . . . . . . . . . . . . 1 . . . . . . . . . . . find_chute 1 | . . . . . . . . . . . . . . . . . . . . . . . . . 1 . . . . . . . . . . . Relay Couplers Released . | . . . . . . . . . . . . . . . . . . . . . . . . . . . . . . . . . . . . . Fabnet Peak Effective % . | . . . . . . . . . . . . . . . . . . . . . . . . . . . . . . . . . . . . . Robots Rewired 1 | . . . . . . . . . . . . . . . 1 . . . . . . . . . . . . . . . . . . . . . Allies Hacked 6 | . . . . . . . . . . . . . 2 . . . . 1 . 1 . . . . . . . . . . . 1 . 1 . . Hacks Repelled . | . . . . . . . . . . . . . . . . . . . . . . . . . . . . . . . . . . . . . Allies | -11 -10 -10 -9 -9 -9 -8 -8 -8 -8 -8 -6 -6 -6 -6 -6 -6 -5 -5 -5 -5 -5 -5 -5 -4 -4 -4 -4 -4 -4 -4 -3 -3 -3 -2 -2 -2 -------- Run | Yrd Mat Min Mat Min Exi Min Mat Sto Rec Scr Fac Was Fac Low Low Dat Pro Fac Was Fac Upp Upp Zhi Pro Fac Was Fac Upp Upp War Pro Res Tes Res Qua Frg Total Allies 59 | . . 1 1 4 . . 1 13 . . 1 18 5 . 1 . . 1 . 2 2 . . . 5 . 1 . . . . 1 1 1 . . Largest Group 18 | . . 1 1 3 3 2 1 11 . . 1 18 18 . 1 1 1 1 . 1 2 . . . 4 . 1 . . . . 1 1 1 . . Highest-Rated Group 638 | . . 31 10 55 55 24 10 199 . . 26 638 637 . 85 85 85 26 . 10 62 . . . 261 . 123 . . . . 10 26 45 . . Highest-Rated Ally 123 | . . 31 10 31 31 16 10 31 . . 26 50 50 . 85 85 85 26 . 10 31 . . . 123 . 123 . . . . 10 26 45 . . Total Orders 2 | . . . . . . . . . . . . . . . . 2 . . . . . . . . . . . . . . . . . . . . STAY 1 | . . . . . . . . . . . . . . . . 1 . . . . . . . . . . . . . . . . . . . . FOLLOW 1 | . . . . . . . . . . . . . . . . 1 . . . . . . . . . . . . . . . . . . . . Ally Attacks 445 | . . 4 . 18 . 9 . 135 . . . 77 146 . . . 13 . . . . . . . 31 . 12 . . . . . . . . . Total Damage 11772 | . . 22 . 148 . 82 . 1732 . . . 3280 4092 . . . 762 . . . . . . . 1281 . 373 . . . . . . . . . Kills 82 | . . 1 . 3 . . . 17 . . . 7 39 . . . 2 . . . . . . . 10 . 3 . . . . . . . . . Allies Corrupted 2 | . . . . . . . . . . . . . 2 . . . . . . . . . . . . . . . . . . . . . . . Allies Melted 8 | . . . . . . . . . . . . . 2 . . . . . . . . . . . . . . . . . . . . . . 6 Intel | -11 -10 -10 -9 -9 -9 -8 -8 -8 -8 -8 -6 -6 -6 -6 -6 -6 -5 -5 -5 -5 -5 -5 -5 -4 -4 -4 -4 -4 -4 -4 -3 -3 -3 -2 -2 -2 ------- Run | Yrd Mat Min Mat Min Exi Min Mat Sto Rec Scr Fac Was Fac Low Low Dat Pro Fac Was Fac Upp Upp Zhi Pro Fac Was Fac Upp Upp War Pro Res Tes Res Qua Frg Active Infowar (turns) 13227 | . 527 207 452 . . . . . . . 933 238 1009 163 460 56 190 899 10 762 100 110 7 103 516 . 170 185 57 143 213 535 193 345 619 4025 Optics 5980 | . . . . . . . . . . . . . . . . . . . . . . . . . . . . . . 50 213 535 193 345 619 4025 Sensors 10406 | . . . . . . . . . . . 933 238 1009 163 460 56 190 899 10 762 100 110 7 103 516 . 101 185 57 143 213 535 193 345 619 2459 Structural 1295 | . . . . . . . . . . . . . . . . . . . . . . . . . . . . . . . . 57 163 267 614 194 Seismic 158 | . 158 . . . . . . . . . . . . . . . . . . . . . . . . . . . . . . . . . . . Machine Analysis 1186 | . 527 207 452 . . . . . . . . . . . . . . . . . . . . . . . . . . . . . . . . . Triangulation 1 | . . . . . . . . . . . . . 1 . . . . . . . . . . . . . . . . . . . . . . . Cloaking 1555 | . . . . . . . . . . . . . . . . . . . . . . . . . . . . 133 10 . . 2 . . . 1410 ECM 255 | . . . . . . . . . . . . 1 . . . . . . . . . . . . . . 69 . . . . . . . . 185 Robot Analysis Total 13 | . 1 . 5 . . . . 1 . . 2 . . . . . . . . . . . 4 . . . . . . . . . . . . . Derelict Logs Recovered 10 | . . 1 . 1 . . . . . . . . . 1 2 . 1 . . . 1 . . 1 . . . 2 . . . . . . . . Drone Launches . | . . . . . . . . . . . . . . . . . . . . . . . . . . . . . . . . . . . . . Drone Recoveries . | . . . . . . . . . . . . . . . . . . . . . . . . . . . . . . . . . . . . . Exploration | -11 -10 -10 -9 -9 -9 -8 -8 -8 -8 -8 -6 -6 -6 -6 -6 -6 -5 -5 -5 -5 -5 -5 -5 -4 -4 -4 -4 -4 -4 -4 -3 -3 -3 -2 -2 -2 ------------- Run | Yrd Mat Min Mat Min Exi Min Mat Sto Rec Scr Fac Was Fac Low Low Dat Pro Fac Was Fac Upp Upp Zhi Pro Fac Was Fac Upp Upp War Pro Res Tes Res Qua Frg Turns Passed 17000 | 33 666 207 696 250 176 234 822 422 349 457 1032 238 1017 163 491 56 190 943 10 816 100 165 53 103 518 10 466 185 60 143 213 535 193 345 619 4024 Spaces Moved 49118 | 36 979 471 1302 514 318 483 1019 661 415 1033 3053 810 3080 463 867 79 429 3494 64 2962 487 748 149 348 1723 62 2170 1002 301 566 662 1712 729 1638 1671 12618 Core 211 | 36 173 . . . . . . . . . . . . . 2 . . . . . . . . . . . . . . . . . . . . . Treads . | . . . . . . . . . . . . . . . . . . . . . . . . . . . . . . . . . . . . . Legs . | . . . . . . . . . . . . . . . . . . . . . . . . . . . . . . . . . . . . . Wheels . | . . . . . . . . . . . . . . . . . . . . . . . . . . . . . . . . . . . . . Hover . | . . . . . . . . . . . . . . . . . . . . . . . . . . . . . . . . . . . . . Flight 48907 | . 806 471 1302 514 318 483 1019 661 415 1033 3053 810 3080 463 865 79 429 3494 64 2962 487 748 149 348 1723 62 2170 1002 301 566 662 1712 729 1638 1671 12618 Fastest Speed 6 | 50 37 37 34 34 34 34 29 29 29 29 12 11 14 20 6 20 20 14 15 15 17 13 19 22 14 14 14 13 13 19 19 7 6 10 10 9 Average Speed 17 | 50 39 37 34 34 34 34 30 29 29 29 21 20 21 20 21 20 20 18 15 17 17 17 19 22 14 14 14 13 17 20 19 14 14 11 10 10 Slowest Speed 500 | 50 50 37 57 34 34 114 31 29 29 29 26 26 26 20 500 20 20 20 15 22 19 19 22 22 22 14 14 14 22 22 19 19 18 12 12 85 Overloaded Moves 142 | . . . . . . . . . . . 20 10 34 . 8 . . . . . . 29 . . . . . . . . . 4 8 . . 29 Propulsion Burnouts . | . . . . . . . . . . . . . . . . . . . . . . . . . . . . . . . . . . . . . Robots Hopped 306 | . 19 7 23 6 . 5 15 8 4 . 21 4 29 4 . 2 . 16 . 38 1 2 . . 22 . 12 1 . . . 13 6 18 9 21 Potential Cave-ins . | . . . . . . . . . . . . . . . . . . . . . . . . . . . . . . . . . . . . . Cave-ins Triggered 1 | . . . . . . . 1 . . . . . . . . . . . . . . . . . . . . . . . . . . . . . Exploration Rate (%) 71 | 3 94 97 92 98 67 79 74 89 86 85 70 92 73 55 88 68 64 68 72 56 68 79 60 58 40 60 54 92 53 84 78 40 85 57 98 86 Regions Visited 36 Branch Regions 22 Pre-discovered Areas 37 | . 2 . 6 . 1 . 4 . 7 . 2 . 3 . 1 1 1 . . 2 . . 3 1 1 . . 2 . . . . . . . . Known Exits Taken 23 | . . 1 . . . 1 1 1 . . . . 1 1 1 1 1 . . 1 1 1 1 1 . . 1 1 1 1 1 1 1 1 1 . Unknown Exits Taken 7 | 1 1 . 1 1 1 . . . 1 1 . . . . . . . . . . . . . . . . . . . . . . . . . . Scrap Searched 26 | . . 1 . 3 . 1 . . . 4 . . . 2 3 . 1 . . . 3 3 . . . . . 1 2 . 2 . . . . . Spaces Dug 358 | . . . 23 . . 13 18 5 3 . 36 . 28 . 12 . . 31 . 27 1 1 . 3 27 . 26 4 . . . 30 6 28 9 27 Terrain Destroyed 527 | . . . 23 34 . 48 18 5 3 . 36 . 28 . 12 . . 31 . 27 1 1 . 3 27 . 26 4 . . . 30 6 28 9 127 Melee 335 | . . . 23 . . . 18 5 3 . 36 . 28 . 12 . . 31 . 27 1 1 . 3 27 . 26 4 . . . 30 6 28 9 17 Projectile 110 | . . . . . . . . . . . . . . . . . . . . . . . . . . . . . . . . . . . . 110 AOE 82 | . . . . 34 . 48 . . . . . . . . . . . . . . . . . . . . . . . . . . . . . . Terrain Rammed . | . . . . . . . . . . . . . . . . . . . . . . . . . . . . . . . . . . . . . Walls Destroyed . | . . . . . . . . . . . . . . . . . . . . . . . . . . . . . . . . . . . . . Machines Disabled . | . . . . . . . . . . . . . . . . . . . . . . . . . . . . . . . . . . . . . Actions | -11 -10 -10 -9 -9 -9 -8 -8 -8 -8 -8 -6 -6 -6 -6 -6 -6 -5 -5 -5 -5 -5 -5 -5 -4 -4 -4 -4 -4 -4 -4 -3 -3 -3 -2 -2 -2 --------- Run | Yrd Mat Min Mat Min Exi Min Mat Sto Rec Scr Fac Was Fac Low Low Dat Pro Fac Was Fac Upp Upp Zhi Pro Fac Was Fac Upp Upp War Pro Res Tes Res Qua Frg Total 55367 | 43 1157 496 1447 576 385 534 1485 843 634 1191 3328 875 3310 528 1152 116 532 3702 63 3130 500 776 164 370 1916 62 2288 1041 309 590 748 1902 777 1705 2061 14631 Wait 4358 | . 139 28 57 61 64 44 426 145 221 155 123 53 112 55 258 40 104 113 . 121 9 22 2 20 151 . 66 33 2 14 86 100 11 32 315 1176 Move 48499 | 35 940 456 1258 501 317 472 990 644 406 1032 3011 803 3024 454 866 75 428 3462 63 2890 484 743 148 347 1681 61 2147 999 300 565 661 1685 718 1604 1652 12577 Hop 279 | . 19 7 20 6 . 5 13 8 4 . 21 2 26 4 . 1 . 16 . 33 1 2 . . 20 . 10 1 . . . 13 4 15 9 19 Pick Up 180 | 1 6 1 11 . 1 . 10 3 . 2 11 . 5 1 2 . . 8 . 7 2 . 2 . 2 1 7 1 2 . 1 2 4 3 5 79 Fast Attach 139 | 4 4 1 6 . 1 . 2 . . . 12 4 10 2 . . . 12 . 7 . 1 2 . 5 . 3 1 . 5 . 11 4 1 8 33 Attach 110 | . 2 2 4 . . 3 2 1 . . 8 . 11 2 1 . . 6 . 1 1 2 . . 2 . 3 2 2 2 . 2 2 5 1 43 Detach 60 | . . . . . 1 2 . . . . 3 3 11 3 1 . . 2 . 1 . . 1 . 1 . 3 . 1 2 . . 2 . . 23 Swap 217 | . . . 9 4 . 1 10 6 . . 20 5 21 . 4 . . 10 . 9 1 5 3 . 6 . 3 . . . . 11 9 4 5 71 Drop 259 | . 2 1 21 . 1 . 12 2 . 2 22 5 11 4 . . . 15 . 5 1 . 1 . 4 . 11 . 2 2 . 14 7 3 11 100 Fire 302 | 3 45 . 19 3 . 5 . . . . . . . . . . . . . . . . . . 1 . . . . . . . . . . 226 Melee 704 | . . . 42 1 . 2 20 26 3 . 53 . 63 2 14 . . 58 . 52 1 1 5 3 43 . 35 4 . . . 64 16 38 25 133 Ram . | . . . . . . . . . . . . . . . . . . . . . . . . . . . . . . . . . . . . . Kick . | . . . . . . . . . . . . . . . . . . . . . . . . . . . . . . . . . . . . . Crush . | . . . . . . . . . . . . . . . . . . . . . . . . . . . . . . . . . . . . . Escape Stasis 95 | . . . . . . . . . . . . . . . . . . . . . . . . . . . . . . . . . . . 30 65 Rewire 1 | . . . . . . . . . . . . . . . 1 . . . . . . . . . . . . . . . . . . . . . Trap 84 | . . . . . . . . 8 . . 44 . 16 1 5 . . . . 4 . . . . . . . . . . . . . . . 6 Miscellaneous 80 | . . . . . . . . . . . . . . . . . . . . . . . . . . . . . . . . . . . . 80 Route ------- -11/Scrapyard -10/Materials (discovered 5 exits: *Mat x3 / [*Min] / Sub) -10/Mines (discovered 3 exits: *Mat x2 / Sub) -9/Materials (discovered 4 exits: *Mat x3 / [*Min]) -9/Mines (discovered 4 exits: *Mat x2 / *Exi / [*Zio]) -9/Exiles -8/Mines -8/Materials (discovered 3 exits: *Fac x2 / *Sto) -8/Storage (discovered 2 exits: *Fac / *Rec) -8/Recycling (discovered 2 exits: *Fac / *Scr) -8/Scraptown (discovered 2 exits: *Fac x2) -6/Factory (discovered 7 exits: *Fac x4 / *Low x2 / *Ext) -6/Waste -6/Factory (discovered 4 exits: Fac x2 / *Low / *Ext) -6/Lower Caves (discovered 2 exits: *Low / *Dat) -6/Lower Caves (discovered 2 exits: *Fac / *Dat) -6/Data Miner -5/Proximity Caves -5/Factory (discovered 5 exits: *Fac x3 / *Upp x2) -5/Waste -5/Factory (discovered 6 exits: *Fac x4 / *Upp x2) -5/Upper Caves -5/Upper Caves (discovered 2 exits: *Fac / *Zhi) -5/Zhirov -4/Proximity Caves -4/Factory (discovered 3 exits: *Res x2 / Arm) -4/Waste -4/Factory (discovered 5 exits: *Res x2 / *Upp x2 / *Arm) -4/Upper Caves -4/Upper Caves (discovered 2 exits: *Res / *War) -4/Warlord -3/Proximity Caves -3/Research (discovered 4 exits: *Res x3 / *Tes) -3/Testing -2/Research (discovered 4 exits: Acc x2 / *Qua x2) -2/Quarantine (discovered 3 exits: *Acc / *Sec / *Frg) -2/Protoforge 0bPrime History --------- Turn | Location | Event 4 | -11/Scrapyard | Discovered new exit (range 16) 34 | -11/Scrapyard | Entered Materials 204 | -10/Materials | Discovered new exit (range 10) 274 | -10/Materials | Discovered new exit (range 10) 300 | -10/Materials | Build established: Mutant 334 | -10/Materials | Discovered new exit (range 14) 398 | -10/Materials | Discovered new exit (range 5) 403 | -10/Materials | Learned location of 1 exit from Storage 457 | -10/Materials | Identified exit to Subcaves 475 | -10/Materials | Repaired Flight Unit 553 | -10/Materials | Learned location of Mines (-9) 625 | -10/Materials | Learned location of 2 exits from Mines 700 | -10/Materials | Entered Mines 701 | -10/Mines | Identified exit to Materials 703 | -10/Mines | Received a Mining Laser from a helpful Derelict 708 | -10/Mines | Discovered exit to Materials (range 10) 838 | -10/Mines | A weapon hastily lodged in a ceiling crevice suddenly fell to the ground 907 | -10/Mines | Entered Materials 907 | -9/Materials | Evolved 2 slots: Propulsion x1, Utility x1 996 | -9/Materials | Build established: Scavenger-Mutant 1037 | -9/Materials | Discovered new exit (range 6) 1253 | -9/Materials | Identified exit to Materials 1307 | -9/Materials | Search patrols dispatched 1348 | -9/Materials | Learned Storage emergency access door positions 1381 | -9/Materials | Learned 2 Storage zone layouts 1419 | -9/Materials | Learned location of 1 exit from Storage 1435 | -9/Materials | Learned location of 1 exit from Storage 1457 | -9/Materials | Learned location of Storage (-8) 1533 | -9/Materials | Learned location of Zion (-7) 1603 | -9/Materials | Entered Mines 1612 | -9/Mines | Received a Rocket Launcher from a helpful Derelict 1650 | -9/Mines | A Derelict revealed a hidden shortcut to a safe place 1693 | -9/Mines | Assisted by bots powering up and referring to "LRC-V3" 1761 | -9/Mines | Found a hidden stash of uninstalled traps 1813 | -9/Mines | Escorted by a lone wolf Derelict 1816 | -9/Mines | Learned Materials non-interactive machine intel 1817 | -9/Mines | Deemed a non-threat by the Exiles lab entrance 1817 | -9/Mines | Discovered new exit (range 5) 1853 | -9/Mines | Entered Exiles 1853 | -9/Exiles | Accompanied by 3 allies 1862 | -9/Exiles | Met 8R-AWN 1867 | -9/Exiles | Met EX-HEX 1878 | -9/Exiles | Met EX-BIN 1886 | -9/Exiles | Met EX-DEC 1961 | -9/Exiles | Discovered new exit (range 10) 2029 | -9/Exiles | Entered Mines 2029 | -8/Mines | Accompanied by 2 allies 2227 | -8/Mines | Discovered exit to Materials (range 14) 2263 | -8/Mines | Entered Materials 2263 | -8/Materials | Evolved 2 slots: Propulsion x1, Utility x1 2264 | -8/Materials | Loaded intel: 39 non-interactive machine locations 2318 | -8/Materials | Central database locked down 2335 | -8/Materials | Crushed by falling debris 2343 | -8/Materials | Met 7R-MNS 2369 | -8/Materials | Discovered new exit (range 12) 2437 | -8/Materials | Repaired Ripper? 2497 | -8/Materials | Repaired Xenon Bombardment Thruster 2516 | -8/Materials | Discovered new exit (range 16) 2636 | -8/Materials | Discovered new exit (range 16) 2641 | -8/Materials | Learned 8 Factory zone layouts 2684 | -8/Materials | Identified exit to Storage 2717 | -8/Materials | Learned 4 Factory zone layouts 2781 | -8/Materials | Learned Storage trap positions 2797 | -8/Materials | Build established: Hacker-Sprinter 2834 | -8/Materials | Learned Storage emergency access door positions 2877 | -8/Materials | Learned location of Extension (-6) 2952 | -8/Materials | Learned Factory trap positions 3003 | -8/Materials | Learned location of Lower Caves (-7) 3066 | -8/Materials | Learned location of 1 exit from Extension 3085 | -8/Materials | Entered Storage 3086 | -8/Storage | Identified exit to Recycling 3086 | -8/Storage | Identified exit to Factory 3088 | -8/Storage | Loaded intel: 9 trap records 3121 | -8/Storage | Assisted by bots powering up and referring to "LRC-V3" 3213 | -8/Storage | Lost 5 allies 3253 | -8/Storage | Lost 3 allies 3361 | -8/Storage | Repaired Imp. Propulsion Shielding 3405 | -8/Storage | Met a pair of Derelict thieves 3422 | -8/Storage | Used back door to open Recycling access 3473 | -8/Storage | Learned 2 Lower Caves zone layouts 3488 | -8/Storage | Lost 5 allies 3507 | -8/Storage | Entered Recycling 3540 | -8/Recycling | Discovered new exit (range 13) 3607 | -8/Recycling | Learned 2 Storage zone layouts 3628 | -8/Recycling | Scanned before Scraplab entrance 3632 | -8/Recycling | Entered Scraplab 3635 | -8/Recycling | Discovered new exit (range 2) 3703 | -8/Recycling | Learned 2 Storage zone layouts 3760 | -8/Recycling | Learned Factory recycling unit intel 3776 | -8/Recycling | Learned Factory stockpile data 3804 | -8/Recycling | Learned 4 Factory zone layouts 3842 | -8/Recycling | Learned 4 Factory zone layouts 3856 | -8/Recycling | Entered Scraptown 3887 | -8/Scraptown | Visited UFD Registry 3887 | -8/Scraptown | Registered with UFD as "Microlauncher" 3891 | -8/Scraptown | Visited IN-MT5's Study 3896 | -8/Scraptown | Visited Comm Corps 3901 | -8/Scraptown | Visited Assassins FH 3911 | -8/Scraptown | Visited Red Mages 3920 | -8/Scraptown | Visited Bundlers 3939 | -8/Scraptown | Visited Cyclists 3941 | -8/Scraptown | Entered Cyclist Reading Room 3947 | -8/Scraptown | Visited Shadow of the Wyrm 3964 | -8/Scraptown | Discovered new exit (range 11) 4031 | -8/Scraptown | Visited A0-MCA Data Center 4035 | -8/Scraptown | Visited Junk Repository 4046 | -8/Scraptown | Given a B- rating by A0-MCA 4055 | -8/Scraptown | Visited Observation Area 4058 | -8/Scraptown | Visited Research Penetration Think Tank 4064 | -8/Scraptown | Visited Derelict Rescue Squad 4068 | -8/Scraptown | Visited Scrap Suit Storage 4075 | -8/Scraptown | Visited Supply Room 4082 | -8/Scraptown | Visited Scrapoid Research Area 4087 | -8/Scraptown | Visited Science Guys 4097 | -8/Scraptown | Visited Science Testing Area 4295 | -8/Scraptown | Met Optimus 4295 | -8/Scraptown | Accepted into 0bPrime 4312 | -8/Scraptown | Discovered new exit (range 3) 4313 | -8/Scraptown | Entered Factory 4313 | -6/Factory | Evolved 4 slots: Propulsion x2, Utility x2 4314 | -6/Factory | Identified exit to Factory 4315 | -6/Factory | Loaded intel: 89 trap records 4317 | -6/Factory | Loaded intel: 8 recycling unit locations 4399 | -6/Factory | Loaded intel: 8 recycling unit locations 4426 | -6/Factory | Discovered new exit (range 15) 4564 | -6/Factory | Repaired Imp. Thermal Generator 4578 | -6/Factory | Learned location of Protoforge (-2) 4670 | -6/Factory | Discovered exit to Factory (range 15) 4684 | -6/Factory | Spotted B-75 Beast 4689 | -6/Factory | Fabricated Imp. Matter Compressor? 4782 | -6/Factory | Discovered new exit (range 13) 4782 | -6/Factory | Discovered new exit (range 14) 4784 | -6/Factory | Identified exit to Lower Caves 4836 | -6/Factory | Learned location of 1 exit from Proximity Caves 4901 | -6/Factory | Learned 2 Extension zone layouts 5013 | -6/Factory | Search patrols dispatched 5028 | -6/Factory | Learned Extension stockpile data 5069 | -6/Factory | Learned 2 Lower Caves zone layouts 5090 | -6/Factory | Unchained authorized (6S-H0T) 5122 | -6/Factory | Learned location of 2 exits from Archives 5184 | -6/Factory | Lost 3 parts (1p1n1w) 5184 | -6/Factory | Destroyed 6S-H0T 5193 | -6/Factory | Found 6S-H0T's SS Cartridge 5195 | -6/Factory | Found Prototype Ballistic Gun 5195 | -6/Factory | Identified 6S-H0T's Six Shooter 5345 | -6/Factory | Manually triggered Chute Trap 5345 | -6/Factory | Sucked down chute 5345 | -6/Factory | Entered Waste 5346 | -6/Waste | Identified exit to Factory 5349 | -6/Waste | Spotted C-40 Crusher 5351 | -6/Waste | Spotted C-40 Crusher 5351 | -6/Waste | Spotted C-40 Crusher 5355 | -6/Waste | Spotted C-40 Crusher 5355 | -6/Waste | Spotted C-40 Crusher 5370 | -6/Waste | Spotted C-40 Crusher 5405 | -6/Waste | Warlord forces began an assault 5422 | -6/Waste | Allies destroyed C-40 Crusher 5431 | -6/Waste | Allies destroyed C-40 Crusher 5433 | -6/Waste | Allies destroyed C-40 Crusher 5436 | -6/Waste | Allies destroyed C-40 Crusher 5445 | -6/Waste | Allies destroyed C-40 Crusher 5471 | -6/Waste | Found Prototype Device 5471 | -6/Waste | Identified Exp. ECM Suite 5583 | -6/Waste | Entered Factory 5583 | -6/Factory | Accompanied by 17 allies 5790 | -6/Factory | Discovered exit to Lower Caves (range 6) 5836 | -6/Factory | Loaded intel: 8 recycling unit locations 5895 | -6/Factory | Garrison activated, responded to threat 5933 | -6/Factory | First assault squad dispatched 5961 | -6/Factory | Learned Extension security intel 5995 | -6/Factory | Learned location of 1 exit from Proximity Caves 5996 | -6/Factory | Fabricated Trap Extractor (x2) 6034 | -6/Factory | Learned Extension emergency access door positions 6038 | -6/Factory | Learned Hub_04(d) trap positions 6040 | -6/Factory | Learned Extension stockpile data 6045 | -6/Factory | Learned 2 Upper Caves zone layouts 6058 | -6/Factory | Discovered new exit (range 15) 6061 | -6/Factory | Identified exit to Extension 6144 | -6/Factory | Repaired Imp. Thermal Generator 6191 | -6/Factory | Spotted B-75 Beast 6325 | -6/Factory | Lost 3 parts (3n) 6600 | -6/Factory | Entered Lower Caves 6601 | -6/Lower Caves | Identified exit to Lower Caves 6643 | -6/Lower Caves | Attracted the attention of an 0b10 checkpoint 6720 | -6/Lower Caves | Learned Factory stockpile data 6728 | -6/Lower Caves | A Derelict revealed a hidden shortcut to meet someone special 6763 | -6/Lower Caves | Entered another Lower Caves area 6766 | -6/Lower Caves | Discovered exit to Factory (range 11) 6840 | -6/Lower Caves | Spotted B-75 Beast 6967 | -6/Lower Caves | Rewired B-75 Beast 7062 | -6/Lower Caves | Discovered new exit (range 12) 7068 | -6/Lower Caves | Learned Factory terminal intel 7147 | -6/Lower Caves | Identified exit to Data Miner 7254 | -6/Lower Caves | Entered Data Miner 7254 | -6/Data Miner | Accompanied by 1 ally 7254 | -6/Data Miner | Discovered new exit (range 5) 7284 | -6/Data Miner | Met Data Miner 7294 | -6/Data Miner | Learned location of Section 7 (-2) 7294 | -6/Data Miner | Acquired the access code to Warlord's prototype stash 7298 | -6/Data Miner | Received God Mode back door access code from Data Miner 7302 | -6/Data Miner | Identified exit to Proximity Caves 7310 | -6/Data Miner | Entered Proximity Caves 7310 | -5/Proximity Caves | Accompanied by 1 ally 7500 | -5/Proximity Caves | Entered Factory 7500 | -5/Factory | Evolved 2 slots: Propulsion x2 7502 | -5/Factory | Loaded intel: 24 terminal locations 7552 | -5/Factory | Loaded intel: 8 recycling unit locations 7576 | -5/Factory | Incoming investigation squad redirected 7601 | -5/Factory | Incoming investigation squad redirected 7645 | -5/Factory | Incoming investigation squad redirected 7696 | -5/Factory | Incoming investigation squad redirected 7741 | -5/Factory | Incoming investigation squad redirected 7800 | -5/Factory | Search patrols dispatched 7814 | -5/Factory | Incoming investigation squad redirected 7825 | -5/Factory | Discovered new exit (range 13) 7828 | -5/Factory | Identified exit to Upper Caves 7852 | -5/Factory | Incoming investigation squad redirected 8100 | -5/Factory | Search patrols dispatched 8118 | -5/Factory | Learned 2 Extension zone layouts 8137 | -5/Factory | Incoming investigation squad redirected 8171 | -5/Factory | Identified exit to Factory 8214 | -5/Factory | Learned 4 Proximity Caves zone layouts 8249 | -5/Factory | Learned location of 1 exit from Upper Caves 8313 | -5/Factory | Learned Quarantine non-interactive machine intel 8360 | -5/Factory | Learned 4 Extension zone layouts 8400 | -5/Factory | Search patrols dispatched 8418 | -5/Factory | Learned 4 Extension zone layouts 8443 | -5/Factory | Manually triggered Chute Trap 8443 | -5/Factory | Sucked down chute 8443 | -5/Factory | Entered Waste 8446 | -5/Waste | Spotted C-40 Crusher 8448 | -5/Waste | Spotted C-40 Crusher 8448 | -5/Waste | Spotted C-40 Crusher 8451 | -5/Waste | Spotted C-40 Crusher 8452 | -5/Waste | Discovered new exit (range 10) 8452 | -5/Waste | Spotted C-40 Crusher 8453 | -5/Waste | Entered Factory 8621 | -5/Factory | Repaired Imp. Thermal Generator 8636 | -5/Factory | Discovered exit to Factory (range 9) 8646 | -5/Factory | Incoming investigation squad redirected 8662 | -5/Factory | Spotted B-75 Beast 8705 | -5/Factory | Fabricated Lgt. Quantum Reactor (x2) 8753 | -5/Factory | Search patrols dispatched 8807 | -5/Factory | Discovered exit to Factory (range 5) 8959 | -5/Factory | Loaded intel: 8 recycling unit locations 8967 | -5/Factory | Learned location of 3 exits from Factory 9028 | -5/Factory | Learned Armory repair station intel 9053 | -5/Factory | Search patrols dispatched 9079 | -5/Factory | Loaded intel: 95 trap records 9119 | -5/Factory | Incoming investigation squad redirected 9235 | -5/Factory | Unchained authorized (GL-D0S) 9269 | -5/Factory | Entered Upper Caves 9270 | -5/Upper Caves | Identified exit to Upper Caves 9273 | -5/Upper Caves | Entered an active Warlord outpost 9273 | -5/Upper Caves | A Commander dispatched an escort 9326 | -5/Upper Caves | Encountered a Warlord checkpoint 9362 | -5/Upper Caves | Learned 4 Factory zone layouts 9369 | -5/Upper Caves | Entered another Upper Caves area 9377 | -5/Upper Caves | Discovered exit to Factory (range 14) 9386 | -5/Upper Caves | Spotted B-75 Beast 9533 | -5/Upper Caves | Discovered new exit (range 6) 9534 | -5/Upper Caves | Identified exit to Zhirov 9534 | -5/Upper Caves | Entered Zhirov 9534 | -5/Zhirov | Discovered new exit (range 3) 9535 | -5/Zhirov | Identified exit to Proximity Caves 9538 | -5/Zhirov | Met Zhirov 9543 | -5/Zhirov | Zhirov requested help retrieving the SGEMP Prototype 9547 | -5/Zhirov | Found Alien Artifact 9547 | -5/Zhirov | Identified Integrated Reactor 9547 | -5/Zhirov | Installed Integrated Reactor, increased core energy generation (+10) 9552 | -5/Zhirov | Found Alien Artifact 9587 | -5/Zhirov | Entered Proximity Caves 9650 | -4/Proximity Caves | Spotted B-86 Titan 9690 | -4/Proximity Caves | Entered Factory 9690 | -4/Factory | Evolved 2 slots: Propulsion x1, Utility x1 9691 | -4/Factory | Identified exit to Research 9691 | -4/Factory | Identified exit to Armory 9712 | -4/Factory | Loaded intel: 8 recycling unit locations 9762 | -4/Factory | Repaired Cld. VTOL Module? 9880 | -4/Factory | Scraphulk reinforcements arrived? 9909 | -4/Factory | Unchained authorized (GL-D0S) 9936 | -4/Factory | Garrison activated, responded to threat 9997 | -4/Factory | Spotted B-86 Titan 10036 | -4/Factory | Learned 4 Research zone layouts 10065 | -4/Factory | Learned Quarantine interactive machine intel 10084 | -4/Factory | Learned Armory repair station intel 10094 | -4/Factory | Learned Research trap positions 10095 | -4/Factory | Learned Armory stockpile data 10097 | -4/Factory | Learned 4 Research zone layouts 10100 | -4/Factory | Learned location of 3 exits from Research 10114 | -4/Factory | Loaded intel: 6 fabricator locations 10136 | -4/Factory | Learned location of 1 exit from Quarantine 10185 | -4/Factory | Adv. Hacking Suite fried by hacking feedback 10208 | -4/Factory | Sucked down chute 10208 | -4/Factory | Entered Waste 10215 | -4/Waste | Spotted C-40 Crusher 10216 | -4/Waste | Discovered new exit (range 15) 10217 | -4/Waste | Spotted C-40 Crusher 10218 | -4/Waste | Identified exit to Factory 10218 | -4/Waste | Entered Factory 10306 | -4/Factory | Discovered exit to Armory (range 12) 10307 | -4/Factory | Loaded intel: 8 recycling unit locations 10332 | -4/Factory | Discovered exit to Research (range 8) 10351 | -4/Factory | Identified exit to Upper Caves 10438 | -4/Factory | Learned Testing emergency access door positions 10438 | -4/Factory | Unchained authorized (GL-D0S) 10457 | -4/Factory | Scraphulk reinforcements arrived? 10468 | -4/Factory | Search patrols dispatched 10477 | -4/Factory | Discovered exit to Research (range 9) 10487 | -4/Factory | Build established: Sprinter 10505 | -4/Factory | Learned 2 Proximity Caves zone layouts 10553 | -4/Factory | Incoming investigation squad redirected 10561 | -4/Factory | Loaded intel: 68 trap records 10669 | -4/Factory | Learned 8 Factory zone layouts 10670 | -4/Factory | Incoming investigation squad redirected 10684 | -4/Factory | Entered Upper Caves 10760 | -4/Upper Caves | Entered an active Warlord outpost 10761 | -4/Upper Caves | Learned Research trap positions 10804 | -4/Upper Caves | Attracted the attention of an 0b10 checkpoint 10845 | -4/Upper Caves | Discovered new exit (range 9) 10864 | -4/Upper Caves | Identified exit to Upper Caves 10869 | -4/Upper Caves | Entered another Upper Caves area 10869 | -4/Upper Caves | Discovered exit to Research (range 12) 10871 | -4/Upper Caves | Attracted the attention of an 0b10 checkpoint 10910 | -4/Upper Caves | Encountered a Warlord checkpoint 10915 | -4/Upper Caves | Discovered new exit (range 5) 10915 | -4/Upper Caves | Identified exit to Warlord 10929 | -4/Upper Caves | Entered Warlord 10939 | -4/Warlord | System corruption cleaned by Quarantine Array 10953 | -4/Warlord | Lost 6 parts (5n1u) 10957 | -4/Warlord | Received a Watcher feed algorithm from an ecstatic Tinkerer 11014 | -4/Warlord | Opened Warlord's prototype stash 11017 | -4/Warlord | Found Prototype Device 11017 | -4/Warlord | Identified Exp. Phase Shifter 11020 | -4/Warlord | Found Prototype Device 11020 | -4/Warlord | Identified Thermal Barrier 11022 | -4/Warlord | Found Prototype Processor 11022 | -4/Warlord | Identified Spectral Analyzer 11024 | -4/Warlord | Found Prototype Hackware 11024 | -4/Warlord | Identified Ghost Barrier 11052 | -4/Warlord | Warlord's base attacked by MAIN.C 11060 | -4/Warlord | Rebuked by Warlord 11069 | -4/Warlord | Discovered new exit (range 14) 11072 | -4/Warlord | Identified exit to Proximity Caves 11072 | -4/Warlord | Entered Proximity Caves 11251 | -3/Proximity Caves | Discovered exit to Research (range 15) 11285 | -3/Proximity Caves | Entered Research 11285 | -3/Research | Evolved 2 slots: Utility x2 11286 | -3/Research | Identified exit to Research 11288 | -3/Research | Loaded intel: 61 trap records 11358 | -3/Research | Build established: Hacker-Scout 11427 | -3/Research | Loaded intel: 5 recycling unit locations 11478 | -3/Research | Found Prototype Processor 11478 | -3/Research | Identified Exp. Terrain Scan Processor 11635 | -3/Research | Spotted B-86 Titan 11724 | -3/Research | Unchained authorized (DW-4LL) 11785 | -3/Research | Search patrols dispatched 11814 | -3/Research | Discovered new exit (range 11) 11819 | -3/Research | Identified exit to Testing 11820 | -3/Research | Entered Testing 11886 | -3/Testing | Identified Transdimensional Reconstructor 11923 | -3/Testing | Found Exp. Signal Interpreter 11926 | -3/Testing | Spotted PG-403NAB320A 11976 | -3/Testing | Fabricated Biomechanical Wings? 11976 | -3/Testing | Discovered exit to Research (range 16) 11981 | -3/Testing | Unchained authorized (DW-4LL) 12010 | -3/Testing | Found Prototype Protection 12013 | -3/Testing | Entered Research 12013 | -2/Research | Evolved 2 slots: Propulsion x1, Utility x1 12014 | -2/Research | Identified exit to Quarantine 12015 | -2/Research | Loaded intel: 67 trap records 12035 | -2/Research | Loaded intel: 5 recycling unit locations 12040 | -2/Research | Spotted B-90 Cyclops 12171 | -2/Research | Identified SHELL Armor 12226 | -2/Research | Unchained authorized (DW-4LL) 12263 | -2/Research | Search patrols dispatched 12318 | -2/Research | DW-4LL burst out of a wall 12319 | -2/Research | Spotted B-90 Cyclops 12344 | -2/Research | Identified exit to Access 12358 | -2/Research | Entered Quarantine 12360 | -2/Quarantine | Identified exit to Section 7 12361 | -2/Quarantine | Loaded intel: 65 non-interactive machine locations 12362 | -2/Quarantine | Loaded intel: 21 interactive machine locations 12372 | -2/Quarantine | Cryocooling Duct disabled 12387 | -2/Quarantine | Ambient heat levels rising (+20) 12387 | -2/Quarantine | Non-combat units ordered to evacuate 12398 | -2/Quarantine | Found Alien Slashing Weapon 12398 | -2/Quarantine | Identified Sigix Broadsword 12523 | -2/Quarantine | Learned Section 7 interactive machine intel 12574 | -2/Quarantine | Found Alien Artifact 12605 | -2/Quarantine | Cryocooling Duct disabled 12620 | -2/Quarantine | Ambient heat levels rising (+20) 12620 | -2/Quarantine | Combat units ordered to evacuate 12642 | -2/Quarantine | Learned Section 7 trap positions 12672 | -2/Quarantine | Found Alien Artifact 12672 | -2/Quarantine | Identified Phase Armor 12685 | -2/Quarantine | Learned 4 Access zone layouts 12714 | -2/Quarantine | Found Alien Reactor 12714 | -2/Quarantine | Identified Matter Drive 12718 | -2/Quarantine | Learned 8 Access zone layouts 12720 | -2/Quarantine | Quarantine Guard activated 12726 | -2/Quarantine | Found Alien Impact Weapon 12726 | -2/Quarantine | Identified Core Stripper 12737 | -2/Quarantine | Met incapacitated Sigix Warrior 12737 | -2/Quarantine | Lockdown squad dispatched 12741 | -2/Quarantine | Learned Section 7 security intel 12772 | -2/Quarantine | Learned location of 3 exits from Research 12777 | -2/Quarantine | Repaired Exp. Thermal Generator 12783 | -2/Quarantine | Spotted Lightning 12812 | -2/Quarantine | Spotted Quarantine Guard 12812 | -2/Quarantine | Spotted Quarantine Guard 12824 | -2/Quarantine | Found Alien Artifact 12824 | -2/Quarantine | Identified Phase Redirector 12829 | -2/Quarantine | Spotted Quarantine Guard 12839 | -2/Quarantine | Spotted Quarantine Guard 12839 | -2/Quarantine | Spotted Quarantine Guard 12848 | -2/Quarantine | Spotted Quarantine Guard 12857 | -2/Quarantine | Spotted Fortress 12868 | -2/Quarantine | Discovered new exit (range 6) 12868 | -2/Quarantine | Identified exit to Protoforge 12977 | -2/Quarantine | Entered Protoforge 13003 | -2/Protoforge | Spotted Hotshot 13003 | -2/Protoforge | Spotted Hotshot 13029 | -2/Protoforge | Spotted B-90 Cyclops 13109 | -2/Protoforge | Superfortress began startup sequence 13126 | -2/Protoforge | Spotted EXE-6 13126 | -2/Protoforge | Spotted EXE-6 13128 | -2/Protoforge | Spotted SKR-2 13129 | -2/Protoforge | Spotted SKR-2 13132 | -2/Protoforge | UFD initiated attack on Protoforge (Readiness: Maximal) 13132 | -2/Protoforge | Loaded intel: 3 recycling unit locations 13168 | -2/Protoforge | Optimus greeted in Protoforge 13171 | -2/Protoforge | Found Prototype Device 13171 | -2/Protoforge | Identified Exp. Kinecellerator 13181 | -2/Protoforge | Found Prototype Processor 13181 | -2/Protoforge | Identified Exp. Armor Integrity Analyzer 13183 | -2/Protoforge | Found Exp. Armor Integrity Analyzer 13184 | -2/Protoforge | Found Prototype Processor 13184 | -2/Protoforge | Identified Exp. Core Analyzer 13187 | -2/Protoforge | Found Exp. Core Analyzer 13214 | -2/Protoforge | Lost 6 allies 13224 | -2/Protoforge | Forge Plexus network access discovered 13224 | -2/Protoforge | Spotted SKR-2 13244 | -2/Protoforge | Spotted EXE-6 13244 | -2/Protoforge | Spotted EXE-6 13259 | -2/Protoforge | Lost 3 allies 13425 | -2/Protoforge | Spotted Decapitator 13425 | -2/Protoforge | Spotted Decapitator 13425 | -2/Protoforge | Spotted Decapitator 13425 | -2/Protoforge | Spotted Decapitator 13462 | -2/Protoforge | Found Faulty Cep. Rapid Grenade Launcher 13463 | -2/Protoforge | Spotted V434-b 13463 | -2/Protoforge | Spotted V951-s 13463 | -2/Protoforge | Spotted V296-i 13463 | -2/Protoforge | Found Faulty Cep. Rapid Grenade Launcher 13480 | -2/Protoforge | Found Crosscalibrator 13486 | -2/Protoforge | Spotted Immortal 13486 | -2/Protoforge | Spotted Immortal 13487 | -2/Protoforge | Spotted Decapitator 13487 | -2/Protoforge | Spotted Decapitator 13487 | -2/Protoforge | Spotted Decapitator 13544 | -2/Protoforge | Found Cep. Fieldthrust Drive 13555 | -2/Protoforge | Found Faulty Cep. Fieldthrust Drive 13831 | -2/Protoforge | Found Cep. NT7 Matterbank 13884 | -2/Protoforge | Spotted Executioner 13992 | -2/Protoforge | Destroyed Decapitator 13992 | -2/Protoforge | Destroyed Decapitator 13992 | -2/Protoforge | Destroyed Decapitator 13995 | -2/Protoforge | Destroyed Decapitator 14012 | -2/Protoforge | Spotted V275-m 14012 | -2/Protoforge | Found Cep. Antigrav Storage Unit 14096 | -2/Protoforge | Spotted Immortal 14104 | -2/Protoforge | Spotted V166-j 14210 | -2/Protoforge | Spotted AP7-3 14211 | -2/Protoforge | Spotted AP7-3 14265 | -2/Protoforge | Destroyed AP7-3 14271 | -2/Protoforge | Found Prototype Processor 14271 | -2/Protoforge | Identified Exp. Targeting Computer 14274 | -2/Protoforge | Found Prototype Energy Gun 14277 | -2/Protoforge | Identified Enh. Gamma Rifle 14290 | -2/Protoforge | UFD reported confirmed Drillbomb installation 14297 | -2/Protoforge | Spotted Immortal 14297 | -2/Protoforge | Spotted Immortal 14309 | -2/Protoforge | Spotted V021-z 14310 | -2/Protoforge | Found Faulty Cep. Helical Railcannon 14313 | -2/Protoforge | Found Cep. Lightning Penetrator 14356 | -2/Protoforge | Found Faulty Cep. Helical Railcannon 14376 | -2/Protoforge | Found Prototype Power Core 14378 | -2/Protoforge | Found Prototype Power Core 14562 | -2/Protoforge | Identified Cep. Zero-point Core (x2) 14582 | -2/Protoforge | Destroyed AP7-3 14618 | -2/Protoforge | Additional patrols dispatched to research labs 14622 | -2/Protoforge | Found Cep. Nanofilaments [Conductive] 14622 | -2/Protoforge | Installed Cep. Nanofilaments [Conductive], 2 resistances modified: TH -15%, EM +25% 14632 | -2/Protoforge | Found Transdimensional Reconstructor 14662 | -2/Protoforge | Found Cep. Thermoelectric Network 14672 | -2/Protoforge | Found Faulty Cep. Cloak Mesh 14674 | -2/Protoforge | Found Faulty Cep. Cloak Mesh 14675 | -2/Protoforge | Found Cep. Thermoelectric Network 14679 | -2/Protoforge | Found Cep. Core Analysis Suite 14680 | -2/Protoforge | Found Cep. Thermoelectric Network 14907 | -2/Protoforge | Identified Subatomic Replicator 14907 | -2/Protoforge | Used Subatomic Replicator to replicate Faulty Cep. Dimensional Manipulator 14908 | -2/Protoforge | Found Faulty Cep. Dimensional Manipulator 15007 | -2/Protoforge | Found Cep. Chromion Battery 15036 | -2/Protoforge | Found Cep. Matter Streamer 15056 | -2/Protoforge | Spotted V925-a 15057 | -2/Protoforge | Found Cep. Weapon Articulator 15079 | -2/Protoforge | Spotted Immortal 15092 | -2/Protoforge | Spotted Executioner 15150 | -2/Protoforge | UFD reported confirmed Drillbomb installation 15155 | -2/Protoforge | Spotted Striker 15165 | -2/Protoforge | Spotted Striker 15199 | -2/Protoforge | Spotted Executioner 15225 | -2/Protoforge | Destroyed Executioner 15234 | -2/Protoforge | Destroyed Immortal 15302 | -2/Protoforge | Spotted Executioner 15306 | -2/Protoforge | Spotted Executioner 15306 | -2/Protoforge | Spotted Executioner 15323 | -2/Protoforge | Spotted Decapitator 15334 | -2/Protoforge | Build established: Scout 15357 | -2/Protoforge | Spotted Immortal 15436 | -2/Protoforge | Spotted Striker 15449 | -2/Protoforge | Spotted Striker 15452 | -2/Protoforge | Spotted Hotshot 15474 | -2/Protoforge | Spotted Striker 15480 | -2/Protoforge | Spotted Striker 15483 | -2/Protoforge | Spotted Striker 15492 | -2/Protoforge | Destroyed Striker 15497 | -2/Protoforge | Spotted Immortal 15498 | -2/Protoforge | Spotted Hotshot 15517 | -2/Protoforge | P-80 Master assimilated allied 02FEU-D 15519 | -2/Protoforge | Spotted Decapitator 15537 | -2/Protoforge | Spotted Executioner 15548 | -2/Protoforge | Spotted Striker 15549 | -2/Protoforge | Spotted Striker 15585 | -2/Protoforge | Destroyed Hotshot 15586 | -2/Protoforge | Lost 15 allies 15635 | -2/Protoforge | Destroyed Immortal 15638 | -2/Protoforge | Destroyed Hotshot 15645 | -2/Protoforge | Spotted Striker 15645 | -2/Protoforge | Spotted Hotshot 15647 | -2/Protoforge | Spotted Immortal 15648 | -2/Protoforge | Spotted Decapitator 15672 | -2/Protoforge | Spotted Executioner 15675 | -2/Protoforge | Spotted Striker 15682 | -2/Protoforge | Spotted Decapitator 15687 | -2/Protoforge | Destroyed Decapitator 15730 | -2/Protoforge | Spotted Hotshot 15731 | -2/Protoforge | Spotted Decapitator 15735 | -2/Protoforge | Destroyed Hotshot 15738 | -2/Protoforge | Spotted Executioner 15738 | -2/Protoforge | Spotted Hotshot 15743 | -2/Protoforge | Spotted Hotshot 15744 | -2/Protoforge | Spotted Hotshot 15752 | -2/Protoforge | Spotted Striker 15753 | -2/Protoforge | Spotted Striker 15753 | -2/Protoforge | Spotted Immortal 15756 | -2/Protoforge | Spotted Hotshot 15760 | -2/Protoforge | Spotted Executioner 15763 | -2/Protoforge | Destroyed Hotshot 15785 | -2/Protoforge | Destroyed Striker 15785 | -2/Protoforge | Destroyed Hotshot 15788 | -2/Protoforge | Spotted Executioner 15789 | -2/Protoforge | Spotted Executioner 15794 | -2/Protoforge | Spotted Hotshot 15798 | -2/Protoforge | Found Scrap Suit 15806 | -2/Protoforge | Destroyed 9 combat bots 15812 | -2/Protoforge | Core integrity fell below 50% 15813 | -2/Protoforge | Spotted Executioner 15814 | -2/Protoforge | Spotted Striker 15825 | -2/Protoforge | Spotted Hotshot 15828 | -2/Protoforge | Destroyed Striker 15841 | -2/Protoforge | Spotted Executioner 15843 | -2/Protoforge | Spotted Striker 15847 | -2/Protoforge | Spotted Executioner 15853 | -2/Protoforge | Spotted Executioner 15862 | -2/Protoforge | Spotted Executioner 15863 | -2/Protoforge | Lost 14 parts (1p5n4u4w) 15874 | -2/Protoforge | Lost 56 allies 15882 | -2/Protoforge | Found Cep. Antigrav Storage Unit 16004 | -2/Protoforge | Destroyed Executioner 16110 | -2/Protoforge | Found Cep. NT7 Matterbank 16139 | -2/Protoforge | Build established: Sprinter 16189 | -2/Protoforge | Spotted Executioner 16200 | -2/Protoforge | Spotted Striker 16200 | -2/Protoforge | Spotted Striker 16201 | -2/Protoforge | Found UFD Drillbomb 16227 | -2/Protoforge | Spotted Executioner 16227 | -2/Protoforge | Spotted Executioner 16227 | -2/Protoforge | Spotted Executioner 16229 | -2/Protoforge | Spotted Striker 16229 | -2/Protoforge | Spotted Executioner 16244 | -2/Protoforge | Spotted Striker 16252 | -2/Protoforge | Spotted Hotshot 16252 | -2/Protoforge | Spotted Hotshot 16320 | -2/Protoforge | Spotted Striker 16364 | -2/Protoforge | Installed UFD Drillbomb at designated target 16364 | -2/Protoforge | UFD reported confirmed Drillbomb installation 16463 | -2/Protoforge | Found UFD Drillbomb 16558 | -2/Protoforge | Spotted Striker 16562 | -2/Protoforge | Spotted Executioner 16573 | -2/Protoforge | Spotted Striker 16573 | -2/Protoforge | Spotted Executioner 16605 | -2/Protoforge | Spotted Striker 16605 | -2/Protoforge | Spotted Executioner 16605 | -2/Protoforge | Spotted Executioner 16605 | -2/Protoforge | Spotted Striker 16650 | -2/Protoforge | Spotted Executioner 16681 | -2/Protoforge | Installed UFD Drillbomb at designated target 16681 | -2/Protoforge | UFD reported confirmed Drillbomb installation 16682 | -2/Protoforge | Spotted Striker 16682 | -2/Protoforge | Spotted Striker 16684 | -2/Protoforge | Spotted Executioner 16704 | -2/Protoforge | Spotted Executioner 16715 | -2/Protoforge | Destroyed Striker 16735 | -2/Protoforge | Found UFD Drillbomb 16749 | -2/Protoforge | Installed UFD Drillbomb at designated target 16749 | -2/Protoforge | UFD reported confirmed Drillbomb installation 16751 | -2/Protoforge | Found UFD Drillbomb 16769 | -2/Protoforge | Installed UFD Drillbomb at designated target 16769 | -2/Protoforge | UFD reported confirmed Drillbomb installation 16772 | -2/Protoforge | Found UFD Drillbomb 16789 | -2/Protoforge | Installed UFD Drillbomb at designated target 16789 | -2/Protoforge | UFD reported confirmed Drillbomb installation 16797 | -2/Protoforge | Found UFD Drillbomb 16818 | -2/Protoforge | Installed UFD Drillbomb at designated target 16818 | -2/Protoforge | UFD reported confirmed Drillbomb installation 16832 | -2/Protoforge | Found UFD Drillbomb 16849 | -2/Protoforge | Spotted Striker 16860 | -2/Protoforge | Installed UFD Drillbomb at designated target 16860 | -2/Protoforge | UFD reported confirmed Drillbomb installation 16877 | -2/Protoforge | Found UFD Drillbomb 16891 | -2/Protoforge | Spotted Executioner 16901 | -2/Protoforge | Installed UFD Drillbomb at designated target 16901 | -2/Protoforge | UFD reported confirmed Drillbomb installation 16902 | -2/Protoforge | UFD began Drillbomb countdown 16910 | -2/Protoforge | Spotted Striker 16911 | -2/Protoforge | Spotted Striker 17002 | *** | Defending 0bPrime! Last Messages --------------- 16998_ N-04 Retriever inserts Gamma Rifle into Forge Plexus. 16999_ 0bP_NET: Things are about to get real, indeed. T-3! 16999_ N-04 Retriever inserts Myomer Leg into Forge Plexus. 17000_ 0bP_NET: First dibs on the next iteration of our Scrapsuit! 17000_ N-04 Retriever inserts Xenon Bombardment Thruster into Forge Plexus. 17001_ 0bP_NET: Ha, who wants more upgrades to that old thing, the proto-powered Scrap Engine is where it's at. 17001_ N-04 Retriever inserts Lgt. Antimatter Reactor into Forge Plexus. 17001_ N-04 Retriever collects Antimatter Reactor. 17001_ N-04 Retriever collects Energy Well. 17001_ N-04 Retriever collects Point Defense System. Map ----- +----------------------------------------------------+ | #""""#####"""""""""""" "" """" " " | | #######?##"""""""""""" "" " "" "#""=" ""%# | | #######?##"""""""""""" "" " # # #% | | ????????###############""###""##"# #### #### | | ????????############### ## ## # ##??# | | ??????????????????????# # # ## ### # #???? | | ????############??????# ## # # ## # #### | | ????############??????################;###"####### | | ????## ##??????# | | ????## "" """ ##??????# " "%%% | | ????## """""" ##??????# """" " "" "" | | ????## ##??????# " " " """ """" | | ????## ##??????# """ """"% % "" | | ????## ##??????# "" " | | ????## ##??????# "" """ " | | ????## #####???# " " """" " | | ????## ### ##??# " " " | | ????#####"+""#"## #### " """ | | ????##### #"""#"##### " " """ | | ???????## # ## "" % | | ????#??## " "# """ | | ????# ### " % ## " % % % " """" | | ??#??# " # % % "# %% " | | ??# ???#; ##;; % "# % " " !" | | ??# ####; ;;;%;%%%%%# % "%"" % " ! n * | | ### # ## % %%%%%%% @%% % "" % " " | | #####; ;% %%%%%%%%&%%%&m " = [[ """" | | #% &%%n%%&%%%%%%%%[%! % !%!! """"" | | ;&%%%;&%%% %%#%%%!=%=[ % *!*%* """""" | | % % %%;% !% %;%|#%%&%!!%% "! "[ """"""" | | " "" %%%&% ##%%%%&%% % % """""""" | | %%% &%%% & # %%%% ! " "" """"""""" | | ! % %%% %%% # %%%% % " %"""""""""" | | * %%%%; % % ## # % % %% % " """""""""" | | %!%% % % % ; ### # % %% %% "" """""""""" | | ! % ;% ; # # # %%% %"% " """"""""""" | | %"%%%";;; % ; # # % %% %%%% " """"""""""" | | % % % " ### # "%%%%n% % """"""""""" | | ""%""" ; "# ##??## # % %%%%% n""""""""""" | | "%% % % ### ####### % %%% %% """"""""""" | | " % ####"####"# %%%%%% """"""""""" | | ["%%% # ## "" %%%%%%%%% """"""""""" | | ""%%#"" " %"# ## " "" " %%% %%""""""""""" | | %% "% %# ## " %%%n%""""""""""" | | % %%% # ## %% A%%"""""""""" | | %%% %" % " " "# %% %%%"""""""""" | | % % % % " "T ## """ ""% %%"""""""""" | | % % " % % "" ## "" %""""""""" | | %% " "% " "# " % % %%%%%"""""""" | | % %%% %#% "# % % """"""" | +----------------------------------------------------+ Best States ------------- Heat Dissipation 101 Coolant Potential 120 Energy Generation 47 Energy Capacity 1020 Matter Stores 1050 Matter Capacity 1050 Sight Range 24 Robot Scan Range 16 Terrain Scan Density 1010 ECM Strength 2 Cloak Strength 9 Additional Mass Support 30 Base Temperature (-) 200 Armor Coverage 900 Resistance: EM 25 Propulsion Shielding 66 Utility Shielding 90 Phase Shifting 20 Evasion (%) 101 Targeting Accuracy 30 Core Analysis 11 Recoil Reduction 1 Offensive Hacking 26 Defensive Hacking 20 Authchip Count 1 Trap Extractor Capacity 6 Item Schematics ----------------- Flight Unit | -9/Materials | Scanalyzed Datajack | -9/Materials | Scanalyzed Trap Extractor | -9/Materials | Scanalyzed Thermal Generator | -9/Materials | Hacked VTOL Module | -9/Materials | Hacked Imp. Propulsion Shielding | -8/Materials | Scanalyzed Mic. Nuclear Core | -8/Materials | Scanalyzed Hacking Suite | -8/Materials | Scanalyzed Hvy. Ion Engine | -8/Materials | Scanalyzed Imp. VTOL Module | -8/Materials | Scanalyzed Hvy. Particle Cannon | -8/Materials | Extracted Lgt. Nuclear Core | -8/Materials | Extracted Titanium Leg | -8/Storage | Hacked Component Analysis Suite | -8/Storage | Hacked Surge Thruster | -8/Storage | Hacked Flak Cannon | -8/Storage | Hacked Imp. Shield Generator | -8/Recycling | Hacked Imp. Terrain Scanner | -8/Recycling | Hacked Adv. Signal Interpreter | -8/Recycling | Hacked Reactive Plating | -8/Recycling | Hacked Fusion Compressor | -8/Recycling | Hacked Imp. Thermal Generator | -6/Factory | Scanalyzed Biomechanical Wings | -6/Factory | Scanalyzed Adv. Weapon Cycler | -6/Factory | Downloaded Graphene Brace | -6/Factory | Hacked Cld. VTOL Module | -6/Factory | Scanalyzed Lgt. Antimatter Reactor | -6/Factory | Hacked Adv. Cryofiber Web | -6/Factory | Hacked Stasis Canceller | -6/Factory | Scanalyzed Exp. Reaction Control System | -6/Factory | Scanalyzed HERF Cannon | -6/Factory | Downloaded Imp. Trap Extractor | -6/Factory | Hacked Exp. ECM Suite | -6/Factory | Scanalyzed Hyp. Gauss Cannon | -6/Factory | Hacked Imp. Surge Thruster | -6/Factory | Hacked Coolant Injector | -6/Factory | Scanalyzed Combat Drone Bay | -6/Data Miner | Free Lgt. Regenerative Plating | -6/Data Miner | Free Cld. Nuclear Pulse Thruster | -6/Data Miner | Free Prc. Matter Filter | -6/Data Miner | Free Mni. Smartbomb Launcher | -6/Data Miner | Free Impulse Thruster | -6/Data Miner | Free Adv. Datajack | -6/Data Miner | Free Railgun | -6/Data Miner | Free Imp. Force Field | -6/Data Miner | Free Adv. Component Analysis Suite | -6/Data Miner | Free Quantum Capacitor | -5/Factory | Hacked Nanoactuators | -5/Factory | Hacked Assault Drone Bay | -5/Zhirov | Free Exp. Heat Sink | -5/Zhirov | Free Exp. Optical Array | -5/Zhirov | Free Imp. Arc Thrower | -5/Zhirov | Free Com. HERF Cannon | -4/Factory | Hacked Exp. Thermal Generator | -3/Research | Scanalyzed Adv. Focal Shield | -3/Testing | Scanalyzed Hcp. Storage Unit | -3/Testing | Scanalyzed Exp. Utility Shielding | -3/Testing | Scanalyzed Exp. Power Amplifier | -3/Testing | Scanalyzed Exp. Thermal Defense Suite | -3/Testing | Archive Tesla Bomb Launcher | -3/Testing | Archive Adv. Variable Charge Gun | -3/Testing | Archive Adv. System Restoration Module | -2/Research | Scanalyzed Enh. Armored Medium Treads | -2/Protoforge | Archive Robot Schematics ------------------ M-13 Machinist | -9/Materials | Hacked G-47 Trooper | -8/Storage | Hacked G-50 Soldier | -6/Factory | Downloaded E-15 Imp | -6/Data Miner | Free H-66 Slayer | -6/Data Miner | Free A-15 Conveyor | -6/Data Miner | Free M-36 Artificer | -3/Testing | Archive K-01 Serf | -3/Testing | Archive R-06 Scavenger | -2/Protoforge | Archive Fabricated ------------ Imp. Matter Compressor | x1 | -6/Factory | Preloaded Trap Extractor | x2 | -6/Factory Lgt. Quantum Reactor | x2 | -5/Factory | Preloaded Biomechanical Wings | x1 | -3/Testing | Authchip Repaired ---------- Flight Unit | 35% | -10/Materials Ripper | 9% | -8/Materials Xenon Bombardment Thruster | 70% | -8/Materials Imp. Propulsion Shielding | 69% | -8/Storage Imp. Thermal Generator | 65% | -6/Factory Imp. Thermal Generator | 37% | -6/Factory Imp. Thermal Generator | 15% | -5/Factory Cld. VTOL Module | 10% | -4/Factory Exp. Thermal Generator | 36% | -2/Quarantine Studied --------- Flight Unit | -9/Materials | Hacked Lgt. Ion Engine | -9/Materials | Hacked Mni. Grenade Launcher | -8/Materials | Hacked Xenon Bombardment Thruster | -6/Factory | Hacked Cesium-ion Thruster | -6/Factory | Hacked Mic. Nuclear Core | -6/Factory | Hacked Fusion Compressor | -6/Factory | Hacked Nuclear Pulse Thruster | -6/Factory | Hacked Surge Thruster | -5/Factory | Hacked Field Propulsion Drive | -5/Factory | Hacked Lgt. Fission Core | -5/Factory | Hacked Mic. Fission Core | -5/Factory | Hacked Q-thruster | -4/Factory | Hacked Mic. Antimatter Reactor | -3/Research | Hacked Imp. Fusion Compressor | -3/Testing | Hacked Impulse Thruster Array | -2/Research | Hacked Alien Tech Used ----------------- Integrated Reactor Sigix Broadsword Phase Armor Matter Drive Core Stripper Phase Redirector Concept Nanofilaments [Conductive] Subatomic Replicator Achievements -------------- None Challenges ------------ None Game ------ Seed TimingAdvancedClaws Manual? 0 Play Time 10:23:59 Cumulative 765.2 hours Start 2025.12.09 @ 10:17:42 End 2025.12.10 @ 01:36:06 Sessions 5 Manual Loads 0 Difficulty Rogue Special Mode None Game No. 320 Rogue 320 Adventurer 0 Explorer 0 Win Type 9 Total 81 Types 41/5/14/6/6/1/1/3/0/4 Lore% 97 Gallery% 90 Achievement% 83 Wizard Run 0 Options --------- Layout 1 ASCII 0 Keyboard 0 Movement Numpad Keybinds 0 Fullscreen 1 Font 24/Smallcaps Map View 50x35 Zoom Use 0% Tactical HUD 1 Map Filters NONE Filters NONE Steam 1 RUN: 338396e5-ea14-4d22-b05e-c45d9dda456f